{"text_format":"1","workbook":"xlsx","n_sheets":3,"sheets":["Produktionsanlæg","Distributionsanlæg","Fællesfunktionsanlæg"],"not_rendered":{"charts":0,"images":0,"macros":1,"external_links":0,"defined_names":2,"comments":0,"pivot_tables":0},"unopened":[],"bounds":{"document_bytes":16777216,"sheet_cells":100000,"rows_first":2000,"rows_last":500,"rows_between":2000,"halvings":0,"cell_chars":16384,"cell_head_chars":4096},"cells_cut":0,"cells_raw":0,"read":"whole","date_system":"1900"}

{"sheet":"Produktionsanlæg","index":0,"n_rows":552,"n_cols":9,"rows_kept":552,"cut":false,"hidden":false,"merged":[[0,0,1,0],[0,1,1,1],[0,2,1,2],[0,3,1,3],[0,8,1,8],[0,4,1,4],[0,5,1,5],[0,6,1,6],[0,7,1,7]]}
["Produktionsanlæg","Enhed","Standard-levetid","Samlet mængde per 31/12-2022","Samlet mængde per 31/12-2023","Samlet mængde per 31/12-2024","Afvigelse 2022-2023","Afvigelse 2023-2024","Bemærkninger"]
[]
["Renseanlæg 1",null,null,null,null,null,{"$f":"IF(D3=\"\",IF(E3>0,\"Ny data\",IF(E3=\"\",\"\",0)),IF(D3=0,IF(E3=0,0,\"Ny data\"),(E3-D3)/D3))","v":""},{"$f":"IF(E3=\"\",IF(F3>0,\"Ny data\",IF(F3=\"\",\"\",0)),IF(E3=0,IF(F3=0,0,\"Ny data\"),(F3-E3)/E3))","v":""}]
["Mindre renseanlæg",null,null,null,null,null,"",""]
["Mindre renseanlæg < 5.000 PE","PE",40,0,null,null,0,""]
["Renseanlæg >= 5.000 PE, Vandbehandling",null,null,null,null,null,"",""]
["Indløb med riste, Konstruktioner","PE",60,40000,40000,40000,0,0]
["Indløb med riste, Mek/EL","PE",20,40000,40000,40000,0,0]
["Indløb med riste, SRO","PE",10,40000,40000,40000,0,0]
["Sand- og fedtfang, Kontruktioner","PE",60,40000,40000,40000,0,0]
["Sand- og fedtfang, Mek/EL","PE",20,40000,40000,40000,0,0]
["Sand- og fedtfang, SRO","PE",10,40000,40000,40000,0,0]
["Forklaring, Konstruktioner","PE",60,40000,40000,40000,0,0]
["Forklaring, Mek/EL","PE",20,40000,40000,40000,0,0]
["Forklaring, SRO","PE",10,40000,40000,40000,0,0]
["Beluftningstanke, Konstruktioner","PE",60,40000,40000,40000,0,0]
["Beluftningstanke, Mek/EL","PE",20,40000,40000,40000,0,0]
["Beluftningstanke, SRO","PE",10,40000,40000,40000,0,0]
["Efterklaringstanke, Konstruktioner","PE",60,40000,40000,40000,0,0]
["Efterklaringstanke, Mek/El","PE",20,40000,40000,40000,0,0]
["Efterklaringstanke, SRO","PE",10,40000,40000,40000,0,0]
["Efterbehandlingsanlæg (sandfilter), Konstruktioner","PE",60,40000,40000,40000,0,0]
["Efterbehandlingsanlæg (sandfilter), Mek/EL","PE",20,40000,40000,40000,0,0]
["Efterbehandlingsanlæg (sandfilter), SRO","PE",10,40000,40000,40000,0,0]
["Renseanlæg >= 5.000 PE, Slambehandling",null,null,null,null,null,"",""]
["Forafvanding, slam, Konstruktion","PE",60,40000,40000,40000,0,0]
["Forafvanding, slam, Mek/EL","PE",20,40000,40000,40000,0,0]
["Forafvanding, slam, SRO","PE",10,40000,40000,40000,0,0]
["Rådnetanke, slam, Konstruktioner","PE",60,40000,40000,40000,0,0]
["Rådnetanke, slam, Mek/EL","PE",20,40000,40000,40000,0,0]
["Rådnetanke, slam, SRO","PE",10,40000,40000,40000,0,0]
["Gasdisponering, Konstruktioner","PE",60,40000,40000,40000,0,0]
["Gasdisponering, Mek/EL","PE",20,40000,40000,40000,0,0]
["Gasdisponering, SRO","PE",10,40000,40000,40000,0,0]
["Gasdisponering - elproduktionsanlæg, Konstruktioner","PE",60,40000,40000,40000,0,0]
["Gasdisponering - elproduktionsanlæg, Mek/EL","PE",20,40000,40000,40000,0,0]
["Gasdisponering - elproduktionsanlæg, SRO","PE",10,40000,40000,40000,0,0]
["Gasrensning - Aktivt kulfilter","m3/t",15,0,0,0,0,0]
["Gasrensning - Biologisk skrubber","m3/t",15,0,0,0,0,0]
["Opgraderingsanlæg - Membran","m3/t",15,0,0,0,0,0]
["Varmeproduktionsanlæg","m3/t",15,0,0,0,0,0]
["Slutafvanding, slam - lavteknologisk (slambede), Konstruktioner","PE",60,0,0,0,0,0]
["Slutafvanding, slam - lavteknologisk (slambede), Mek/EL","PE",20,0,0,0,0,0]
["Slutafvanding, slam - lavteknologisk (slambede), SRO","PE",10,0,0,0,0,0]
["Slutafvanding, slam - højteknologisk (centrifuger), Konstruktioner","PE",60,40000,40000,107520,0,1.6879999999999999,"Der er etableret ny dekanter med en designkapacitet på 280kg ts/time.  Udbyttekonstant er 0,5 kg ts/kg COD.  1 PE = 125 g COD    280 kg ss/time * 24 timer=  6720  kg ss /døgn : 6720 kg/døgn/ 0,5 kg ts/ kg COD = 13440 kg  COD svarende til 13440000 gram COD. 13440000/125 g COD/PE =  107520 PE  "]
["Slutafvanding, slam - højteknologisk (centrifuger), Mek/El","PE",20,40000,40000,107520,0,1.6879999999999999,"Der er etableret ny dekanter med en designkapacitet på 280kg ts/time.  Udbyttekonstant er 0,5 kg ts/kg COD.  1 PE = 125 g COD    280 kg ss/time * 24 timer=  6720  kg ss /døgn : 6720 kg/døgn/ 0,5 kg ts/ kg COD = 13440 kg  COD svarende til 13440000 gram COD. 13440000/125 g COD/PE =  107520 PE  "]
["Slutafvanding, slam - højteknologisk (centrifuger), SRO","PE",10,40000,40000,107520,0,1.6879999999999999,"Der er etableret ny dekanter med en designkapacitet på 280kg ts/time.  Udbyttekonstant er 0,5 kg ts/kg COD.  1 PE = 125 g COD    280 kg ss/time * 24 timer=  6720  kg ss /døgn : 6720 kg/døgn/ 0,5 kg ts/ kg COD = 13440 kg  COD svarende til 13440000 gram COD. 13440000/125 g COD/PE =  107520 PE  "]
["Renseanlæg >= 5.000 PE, Slamdisponering",null,null,null,null,null,"",""]
["Slutdisponering, slam - lavteknologisk (slammineralisering), Konstruktioner","PE",60,0,0,0,0,0]
["Slutdisponering, slam - lavteknologisk (slammineralisering), Mek/EL","PE",20,0,0,0,0,0]
["Slutdisponering, slam - lavteknologisk (slammineralisering), SRO","PE",10,0,0,0,0,0]
["Slutdisponering, slam - højteknologisk (slamtørring), Konstruktioner","PE",60,0,0,0,0,0]
["Slutdisponering, slam - højteknologisk (slamtørring), Mek/EL","PE",20,0,0,0,0,0]
["Slutdisponering, slam - højteknologisk (slamtørring), SRO","PE",10,0,0,0,0,0]
["Slutdisponering, slam - højteknologisk (slamtørring og -forbrænding), Konstruktioner","PE",60,0,0,0,0,0]
["Slutdisponering, slam - højteknologisk (slamtørring og -forbrænding), Mek/EL","PE",20,0,0,0,0,0]
["Slutdisponering, slam - højteknologisk (slamtørring og -forbrænding), SRO","PE",10,0,0,0,0,0]
["Renseanlæg 2",null,null,null,null,null,"",""]
["Mindre renseanlæg",null,null,null,null,null,"",""]
["Mindre renseanlæg < 5.000 PE","PE",40,0,null,null,0,""]
["Renseanlæg >= 5.000 PE, Vandbehandling",null,null,null,null,null,"",""]
["Indløb med riste, Konstruktioner","PE",60,0,null,null,0,""]
["Indløb med riste, Mek/EL","PE",20,0,null,null,0,""]
["Indløb med riste, SRO","PE",10,0,null,null,0,""]
["Sand- og fedtfang, Kontruktioner","PE",60,0,null,null,0,""]
["Sand- og fedtfang, Mek/EL","PE",20,0,null,null,0,""]
["Sand- og fedtfang, SRO","PE",10,0,null,null,{"$f":"IF(D67=\"\",IF(E67>0,\"Ny data\",IF(E67=\"\",\"\",0)),IF(D67=0,IF(E67=0,0,\"Ny data\"),(E67-D67)/D67))","v":0},{"$f":"IF(E67=\"\",IF(F67>0,\"Ny data\",IF(F67=\"\",\"\",0)),IF(E67=0,IF(F67=0,0,\"Ny data\"),(F67-E67)/E67))","v":""}]
["Forklaring, Konstruktioner","PE",60,0,null,null,0,""]
["Forklaring, Mek/EL","PE",20,0,null,null,0,""]
["Forklaring, SRO","PE",10,0,null,null,0,""]
["Beluftningstanke, Konstruktioner","PE",60,0,null,null,0,""]
["Beluftningstanke, Mek/EL","PE",20,0,null,null,0,""]
["Beluftningstanke, SRO","PE",10,0,null,null,0,""]
["Efterklaringstanke, Konstruktioner","PE",60,0,null,null,0,""]
["Efterklaringstanke, Mek/El","PE",20,0,null,null,0,""]
["Efterklaringstanke, SRO","PE",10,0,null,null,0,""]
["Efterbehandlingsanlæg (sandfilter), Konstruktioner","PE",60,0,null,null,0,""]
["Efterbehandlingsanlæg (sandfilter), Mek/EL","PE",20,0,null,null,0,""]
["Efterbehandlingsanlæg (sandfilter), SRO","PE",10,0,null,null,0,""]
["Renseanlæg >= 5.000 PE, Slambehandling",null,null,null,null,null,"",""]
["Forafvanding, slam, Konstruktion","PE",60,0,null,null,0,""]
["Forafvanding, slam, Mek/EL","PE",20,0,null,null,0,""]
["Forafvanding, slam, SRO","PE",10,0,null,null,0,""]
["Rådnetanke, slam, Konstruktioner","PE",60,0,null,null,0,""]
["Rådnetanke, slam, Mek/EL","PE",20,0,null,null,0,""]
["Rådnetanke, slam, SRO","PE",10,0,null,null,0,""]
["Gasdisponering, Konstruktioner","PE",60,0,null,null,0,""]
["Gasdisponering, Mek/EL","PE",20,0,null,null,0,""]
["Gasdisponering, SRO","PE",10,0,null,null,0,""]
["Gasdisponering - elproduktionsanlæg, Konstruktioner","PE",60,0,null,null,0,""]
["Gasdisponering - elproduktionsanlæg, Mek/EL","PE",20,0,null,null,0,""]
["Gasdisponering - elproduktionsanlæg, SRO","PE",10,0,null,null,0,""]
["Gasrensning - Aktivt kulfilter","m3/t",15,0,null,null,0,""]
["Gasrensning - Biologisk skrubber","m3/t",15,0,null,null,0,""]
["Opgraderingsanlæg - Membran","m3/t",15,0,null,null,0,""]
["Varmeproduktionsanlæg","m3/t",15,0,null,null,0,""]
["Slutafvanding, slam - lavteknologisk (slambede), Konstruktioner","PE",60,0,null,null,0,""]
["Slutafvanding, slam - lavteknologisk (slambede), Mek/EL","PE",20,0,null,null,0,""]
["Slutafvanding, slam - lavteknologisk (slambede), SRO","PE",10,0,null,null,0,""]
["Slutafvanding, slam - højteknologisk (centrifuger), Konstruktioner","PE",60,0,null,null,0,""]
["Slutafvanding, slam - højteknologisk (centrifuger), Mek/El","PE",20,0,null,null,0,""]
["Slutafvanding, slam - højteknologisk (centrifuger), SRO","PE",10,0,null,null,0,""]
["Renseanlæg >= 5.000 PE, Slamdisponering",null,null,null,null,null,"",""]
["Slutdisponering, slam - lavteknologisk (slammineralisering), Konstruktioner","PE",60,0,null,null,0,""]
["Slutdisponering, slam - lavteknologisk (slammineralisering), Mek/EL","PE",20,0,null,null,0,""]
["Slutdisponering, slam - lavteknologisk (slammineralisering), SRO","PE",10,0,null,null,0,""]
["Slutdisponering, slam - højteknologisk (slamtørring), Konstruktioner","PE",60,0,null,null,0,""]
["Slutdisponering, slam - højteknologisk (slamtørring), Mek/EL","PE",20,0,null,null,0,""]
["Slutdisponering, slam - højteknologisk (slamtørring), SRO","PE",10,0,null,null,0,""]
["Slutdisponering, slam - højteknologisk (slamtørring og -forbrænding), Konstruktioner","PE",60,0,null,null,0,""]
["Slutdisponering, slam - højteknologisk (slamtørring og -forbrænding), Mek/EL","PE",20,0,null,null,0,""]
["Slutdisponering, slam - højteknologisk (slamtørring og -forbrænding), SRO","PE",10,0,null,null,0,""]
["Renseanlæg 3",null,null,null,null,null,"",""]
["Mindre renseanlæg",null,null,null,null,null,"",""]
["Mindre renseanlæg < 5.000 PE","PE",40,0,null,null,0,""]
["Renseanlæg >= 5.000 PE, Vandbehandling",null,null,null,null,null,"",""]
["Indløb med riste, Konstruktioner","PE",60,0,null,null,0,""]
["Indløb med riste, Mek/EL","PE",20,0,null,null,0,""]
["Indløb med riste, SRO","PE",10,0,null,null,0,""]
["Sand- og fedtfang, Kontruktioner","PE",60,0,null,null,0,""]
["Sand- og fedtfang, Mek/EL","PE",20,0,null,null,0,""]
["Sand- og fedtfang, SRO","PE",10,0,null,null,0,""]
["Forklaring, Konstruktioner","PE",60,0,null,null,0,""]
["Forklaring, Mek/EL","PE",20,0,null,null,0,""]
["Forklaring, SRO","PE",10,0,null,null,0,""]
["Beluftningstanke, Konstruktioner","PE",60,0,null,null,0,""]
["Beluftningstanke, Mek/EL","PE",20,0,null,null,0,""]
["Beluftningstanke, SRO","PE",10,0,null,null,0,""]
["Efterklaringstanke, Konstruktioner","PE",60,0,null,null,0,""]
["Efterklaringstanke, Mek/El","PE",20,0,null,null,0,""]
["Efterklaringstanke, SRO","PE",10,0,null,null,{"$f":"IF(D131=\"\",IF(E131>0,\"Ny data\",IF(E131=\"\",\"\",0)),IF(D131=0,IF(E131=0,0,\"Ny data\"),(E131-D131)/D131))","v":0},{"$f":"IF(E131=\"\",IF(F131>0,\"Ny data\",IF(F131=\"\",\"\",0)),IF(E131=0,IF(F131=0,0,\"Ny data\"),(F131-E131)/E131))","v":""}]
["Efterbehandlingsanlæg (sandfilter), Konstruktioner","PE",60,0,null,null,0,""]
["Efterbehandlingsanlæg (sandfilter), Mek/EL","PE",20,0,null,null,0,""]
["Efterbehandlingsanlæg (sandfilter), SRO","PE",10,0,null,null,0,""]
["Renseanlæg >= 5.000 PE, Slambehandling",null,null,null,null,null,"",""]
["Forafvanding, slam, Konstruktion","PE",60,0,null,null,0,""]
["Forafvanding, slam, Mek/EL","PE",20,0,null,null,0,""]
["Forafvanding, slam, SRO","PE",10,0,null,null,0,""]
["Rådnetanke, slam, Konstruktioner","PE",60,0,null,null,0,""]
["Rådnetanke, slam, Mek/EL","PE",20,0,null,null,0,""]
["Rådnetanke, slam, SRO","PE",10,0,null,null,0,""]
["Gasdisponering, Konstruktioner","PE",60,0,null,null,0,""]
["Gasdisponering, Mek/EL","PE",20,0,null,null,0,""]
["Gasdisponering, SRO","PE",10,0,null,null,0,""]
["Gasdisponering - elproduktionsanlæg, Konstruktioner","PE",60,0,null,null,0,""]
["Gasdisponering - elproduktionsanlæg, Mek/EL","PE",20,0,null,null,0,""]
["Gasdisponering - elproduktionsanlæg, SRO","PE",10,0,null,null,0,""]
["Gasrensning - Aktivt kulfilter","m3/t",15,0,null,null,0,""]
["Gasrensning - Biologisk skrubber","m3/t",15,0,null,null,0,""]
["Opgraderingsanlæg - Membran","m3/t",15,0,null,null,0,""]
["Varmeproduktionsanlæg","m3/t",15,0,null,null,0,""]
["Slutafvanding, slam - lavteknologisk (slambede), Konstruktioner","PE",60,0,null,null,0,""]
["Slutafvanding, slam - lavteknologisk (slambede), Mek/EL","PE",20,0,null,null,0,""]
["Slutafvanding, slam - lavteknologisk (slambede), SRO","PE",10,0,null,null,0,""]
["Slutafvanding, slam - højteknologisk (centrifuger), Konstruktioner","PE",60,0,null,null,0,""]
["Slutafvanding, slam - højteknologisk (centrifuger), Mek/El","PE",20,0,null,null,0,""]
["Slutafvanding, slam - højteknologisk (centrifuger), SRO","PE",10,0,null,null,0,""]
["Renseanlæg >= 5.000 PE, Slamdisponering",null,null,null,null,null,"",""]
["Slutdisponering, slam - lavteknologisk (slammineralisering), Konstruktioner","PE",60,0,null,null,0,""]
["Slutdisponering, slam - lavteknologisk (slammineralisering), Mek/EL","PE",20,0,null,null,0,""]
["Slutdisponering, slam - lavteknologisk (slammineralisering), SRO","PE",10,0,null,null,0,""]
["Slutdisponering, slam - højteknologisk (slamtørring), Konstruktioner","PE",60,0,null,null,0,""]
["Slutdisponering, slam - højteknologisk (slamtørring), Mek/EL","PE",20,0,null,null,0,""]
["Slutdisponering, slam - højteknologisk (slamtørring), SRO","PE",10,0,null,null,0,""]
["Slutdisponering, slam - højteknologisk (slamtørring og -forbrænding), Konstruktioner","PE",60,0,null,null,0,""]
["Slutdisponering, slam - højteknologisk (slamtørring og -forbrænding), Mek/EL","PE",20,0,null,null,0,""]
["Slutdisponering, slam - højteknologisk (slamtørring og -forbrænding), SRO","PE",10,0,null,null,0,""]
["Renseanlæg 4",null,null,null,null,null,"",""]
["Mindre renseanlæg",null,null,null,null,null,"",""]
["Mindre renseanlæg < 5.000 PE","PE",40,0,null,null,0,""]
["Renseanlæg >= 5.000 PE, Vandbehandling",null,null,null,null,null,"",""]
["Indløb med riste, Konstruktioner","PE",60,0,null,null,0,""]
["Indløb med riste, Mek/EL","PE",20,0,null,null,0,""]
["Indløb med riste, SRO","PE",10,0,null,null,0,""]
["Sand- og fedtfang, Kontruktioner","PE",60,0,null,null,0,""]
["Sand- og fedtfang, Mek/EL","PE",20,0,null,null,0,""]
["Sand- og fedtfang, SRO","PE",10,0,null,null,0,""]
["Forklaring, Konstruktioner","PE",60,0,null,null,0,""]
["Forklaring, Mek/EL","PE",20,0,null,null,0,""]
["Forklaring, SRO","PE",10,0,null,null,0,""]
["Beluftningstanke, Konstruktioner","PE",60,0,null,null,0,""]
["Beluftningstanke, Mek/EL","PE",20,0,null,null,0,""]
["Beluftningstanke, SRO","PE",10,0,null,null,0,""]
["Efterklaringstanke, Konstruktioner","PE",60,0,null,null,0,""]
["Efterklaringstanke, Mek/El","PE",20,0,null,null,0,""]
["Efterklaringstanke, SRO","PE",10,0,null,null,0,""]
["Efterbehandlingsanlæg (sandfilter), Konstruktioner","PE",60,0,null,null,0,""]
["Efterbehandlingsanlæg (sandfilter), Mek/EL","PE",20,0,null,null,0,""]
["Efterbehandlingsanlæg (sandfilter), SRO","PE",10,0,null,null,0,""]
["Renseanlæg >= 5.000 PE, Slambehandling",null,null,null,null,null,"",""]
["Forafvanding, slam, Konstruktion","PE",60,0,null,null,0,""]
["Forafvanding, slam, Mek/EL","PE",20,0,null,null,0,""]
["Forafvanding, slam, SRO","PE",10,0,null,null,0,""]
["Rådnetanke, slam, Konstruktioner","PE",60,0,null,null,0,""]
["Rådnetanke, slam, Mek/EL","PE",20,0,null,null,{"$f":"IF(D195=\"\",IF(E195>0,\"Ny data\",IF(E195=\"\",\"\",0)),IF(D195=0,IF(E195=0,0,\"Ny data\"),(E195-D195)/D195))","v":0},{"$f":"IF(E195=\"\",IF(F195>0,\"Ny data\",IF(F195=\"\",\"\",0)),IF(E195=0,IF(F195=0,0,\"Ny data\"),(F195-E195)/E195))","v":""}]
["Rådnetanke, slam, SRO","PE",10,0,null,null,0,""]
["Gasdisponering, Konstruktioner","PE",60,0,null,null,0,""]
["Gasdisponering, Mek/EL","PE",20,0,null,null,0,""]
["Gasdisponering, SRO","PE",10,0,null,null,0,""]
["Gasdisponering - elproduktionsanlæg, Konstruktioner","PE",60,0,null,null,0,""]
["Gasdisponering - elproduktionsanlæg, Mek/EL","PE",20,0,null,null,0,""]
["Gasdisponering - elproduktionsanlæg, SRO","PE",10,0,null,null,0,""]
["Gasrensning - Aktivt kulfilter","m3/t",15,0,null,null,0,""]
["Gasrensning - Biologisk skrubber","m3/t",15,0,null,null,0,""]
["Opgraderingsanlæg - Membran","m3/t",15,0,null,null,0,""]
["Varmeproduktionsanlæg","m3/t",15,0,null,null,0,""]
["Slutafvanding, slam - lavteknologisk (slambede), Konstruktioner","PE",60,0,null,null,0,""]
["Slutafvanding, slam - lavteknologisk (slambede), Mek/EL","PE",20,0,null,null,0,""]
["Slutafvanding, slam - lavteknologisk (slambede), SRO","PE",10,0,null,null,0,""]
["Slutafvanding, slam - højteknologisk (centrifuger), Konstruktioner","PE",60,0,null,null,0,""]
["Slutafvanding, slam - højteknologisk (centrifuger), Mek/El","PE",20,0,null,null,0,""]
["Slutafvanding, slam - højteknologisk (centrifuger), SRO","PE",10,0,null,null,0,""]
["Renseanlæg >= 5.000 PE, Slamdisponering",null,null,null,null,null,"",""]
["Slutdisponering, slam - lavteknologisk (slammineralisering), Konstruktioner","PE",60,0,null,null,0,""]
["Slutdisponering, slam - lavteknologisk (slammineralisering), Mek/EL","PE",20,0,null,null,0,""]
["Slutdisponering, slam - lavteknologisk (slammineralisering), SRO","PE",10,0,null,null,0,""]
["Slutdisponering, slam - højteknologisk (slamtørring), Konstruktioner","PE",60,0,null,null,0,""]
["Slutdisponering, slam - højteknologisk (slamtørring), Mek/EL","PE",20,0,null,null,0,""]
["Slutdisponering, slam - højteknologisk (slamtørring), SRO","PE",10,0,null,null,0,""]
["Slutdisponering, slam - højteknologisk (slamtørring og -forbrænding), Konstruktioner","PE",60,0,null,null,0,""]
["Slutdisponering, slam - højteknologisk (slamtørring og -forbrænding), Mek/EL","PE",20,0,null,null,0,""]
["Slutdisponering, slam - højteknologisk (slamtørring og -forbrænding), SRO","PE",10,0,null,null,0,""]
["Renseanlæg 5",null,null,null,null,null,"",""]
["Mindre renseanlæg",null,null,null,null,null,"",""]
["Mindre renseanlæg < 5.000 PE","PE",40,0,null,null,0,""]
["Renseanlæg >= 5.000 PE, Vandbehandling",null,null,null,null,null,"",""]
["Indløb med riste, Konstruktioner","PE",60,0,null,null,0,""]
["Indløb med riste, Mek/EL","PE",20,0,null,null,0,""]
["Indløb med riste, SRO","PE",10,0,null,null,0,""]
["Sand- og fedtfang, Kontruktioner","PE",60,0,null,null,0,""]
["Sand- og fedtfang, Mek/EL","PE",20,0,null,null,0,""]
["Sand- og fedtfang, SRO","PE",10,0,null,null,0,""]
["Forklaring, Konstruktioner","PE",60,0,null,null,0,""]
["Forklaring, Mek/EL","PE",20,0,null,null,0,""]
["Forklaring, SRO","PE",10,0,null,null,0,""]
["Beluftningstanke, Konstruktioner","PE",60,0,null,null,0,""]
["Beluftningstanke, Mek/EL","PE",20,0,null,null,0,""]
["Beluftningstanke, SRO","PE",10,0,null,null,0,""]
["Efterklaringstanke, Konstruktioner","PE",60,0,null,null,0,""]
["Efterklaringstanke, Mek/El","PE",20,0,null,null,0,""]
["Efterklaringstanke, SRO","PE",10,0,null,null,0,""]
["Efterbehandlingsanlæg (sandfilter), Konstruktioner","PE",60,0,null,null,0,""]
["Efterbehandlingsanlæg (sandfilter), Mek/EL","PE",20,0,null,null,0,""]
["Efterbehandlingsanlæg (sandfilter), SRO","PE",10,0,null,null,0,""]
["Renseanlæg >= 5.000 PE, Slambehandling",null,null,null,null,null,"",""]
["Forafvanding, slam, Konstruktion","PE",60,0,null,null,0,""]
["Forafvanding, slam, Mek/EL","PE",20,0,null,null,0,""]
["Forafvanding, slam, SRO","PE",10,0,null,null,0,""]
["Rådnetanke, slam, Konstruktioner","PE",60,0,null,null,0,""]
["Rådnetanke, slam, Mek/EL","PE",20,0,null,null,0,""]
["Rådnetanke, slam, SRO","PE",10,0,null,null,0,""]
["Gasdisponering, Konstruktioner","PE",60,0,null,null,0,""]
["Gasdisponering, Mek/EL","PE",20,0,null,null,0,""]
["Gasdisponering, SRO","PE",10,0,null,null,0,""]
["Gasdisponering - elproduktionsanlæg, Konstruktioner","PE",60,0,null,null,0,""]
["Gasdisponering - elproduktionsanlæg, Mek/EL","PE",20,0,null,null,0,""]
["Gasdisponering - elproduktionsanlæg, SRO","PE",10,0,null,null,0,""]
["Gasrensning - Aktivt kulfilter","m3/t",15,0,null,null,0,""]
["Gasrensning - Biologisk skrubber","m3/t",15,0,null,null,{"$f":"IF(D259=\"\",IF(E259>0,\"Ny data\",IF(E259=\"\",\"\",0)),IF(D259=0,IF(E259=0,0,\"Ny data\"),(E259-D259)/D259))","v":0},{"$f":"IF(E259=\"\",IF(F259>0,\"Ny data\",IF(F259=\"\",\"\",0)),IF(E259=0,IF(F259=0,0,\"Ny data\"),(F259-E259)/E259))","v":""}]
["Opgraderingsanlæg - Membran","m3/t",15,0,null,null,0,""]
["Varmeproduktionsanlæg","m3/t",15,0,null,null,0,""]
["Slutafvanding, slam - lavteknologisk (slambede), Konstruktioner","PE",60,0,null,null,0,""]
["Slutafvanding, slam - lavteknologisk (slambede), Mek/EL","PE",20,0,null,null,0,""]
["Slutafvanding, slam - lavteknologisk (slambede), SRO","PE",10,0,null,null,0,""]
["Slutafvanding, slam - højteknologisk (centrifuger), Konstruktioner","PE",60,0,null,null,0,""]
["Slutafvanding, slam - højteknologisk (centrifuger), Mek/El","PE",20,0,null,null,0,""]
["Slutafvanding, slam - højteknologisk (centrifuger), SRO","PE",10,0,null,null,0,""]
["Renseanlæg >= 5.000 PE, Slamdisponering",null,null,null,null,null,"",""]
["Slutdisponering, slam - lavteknologisk (slammineralisering), Konstruktioner","PE",60,0,null,null,0,""]
["Slutdisponering, slam - lavteknologisk (slammineralisering), Mek/EL","PE",20,0,null,null,0,""]
["Slutdisponering, slam - lavteknologisk (slammineralisering), SRO","PE",10,0,null,null,0,""]
["Slutdisponering, slam - højteknologisk (slamtørring), Konstruktioner","PE",60,0,null,null,0,""]
["Slutdisponering, slam - højteknologisk (slamtørring), Mek/EL","PE",20,0,null,null,0,""]
["Slutdisponering, slam - højteknologisk (slamtørring), SRO","PE",10,0,null,null,0,""]
["Slutdisponering, slam - højteknologisk (slamtørring og -forbrænding), Konstruktioner","PE",60,0,null,null,0,""]
["Slutdisponering, slam - højteknologisk (slamtørring og -forbrænding), Mek/EL","PE",20,0,null,null,0,""]
["Slutdisponering, slam - højteknologisk (slamtørring og -forbrænding), SRO","PE",10,0,null,null,0,""]
["Renseanlæg 6",null,null,null,null,null,"",""]
["Mindre renseanlæg",null,null,null,null,null,"",""]
["Mindre renseanlæg < 5.000 PE","PE",40,0,null,null,0,""]
["Renseanlæg >= 5.000 PE, Vandbehandling",null,null,null,null,null,"",""]
["Indløb med riste, Konstruktioner","PE",60,0,null,null,0,""]
["Indløb med riste, Mek/EL","PE",20,0,null,null,0,""]
["Indløb med riste, SRO","PE",10,0,null,null,0,""]
["Sand- og fedtfang, Kontruktioner","PE",60,0,null,null,0,""]
["Sand- og fedtfang, Mek/EL","PE",20,0,null,null,0,""]
["Sand- og fedtfang, SRO","PE",10,0,null,null,0,""]
["Forklaring, Konstruktioner","PE",60,0,null,null,0,""]
["Forklaring, Mek/EL","PE",20,0,null,null,0,""]
["Forklaring, SRO","PE",10,0,null,null,0,""]
["Beluftningstanke, Konstruktioner","PE",60,0,null,null,0,""]
["Beluftningstanke, Mek/EL","PE",20,0,null,null,0,""]
["Beluftningstanke, SRO","PE",10,0,null,null,0,""]
["Efterklaringstanke, Konstruktioner","PE",60,0,null,null,0,""]
["Efterklaringstanke, Mek/El","PE",20,0,null,null,0,""]
["Efterklaringstanke, SRO","PE",10,0,null,null,0,""]
["Efterbehandlingsanlæg (sandfilter), Konstruktioner","PE",60,0,null,null,0,""]
["Efterbehandlingsanlæg (sandfilter), Mek/EL","PE",20,0,null,null,0,""]
["Efterbehandlingsanlæg (sandfilter), SRO","PE",10,0,null,null,0,""]
["Renseanlæg >= 5.000 PE, Slambehandling",null,null,null,null,null,"",""]
["Forafvanding, slam, Konstruktion","PE",60,0,null,null,0,""]
["Forafvanding, slam, Mek/EL","PE",20,0,null,null,0,""]
["Forafvanding, slam, SRO","PE",10,0,null,null,0,""]
["Rådnetanke, slam, Konstruktioner","PE",60,0,null,null,0,""]
["Rådnetanke, slam, Mek/EL","PE",20,0,null,null,0,""]
["Rådnetanke, slam, SRO","PE",10,0,null,null,0,""]
["Gasdisponering, Konstruktioner","PE",60,0,null,null,0,""]
["Gasdisponering, Mek/EL","PE",20,0,null,null,0,""]
["Gasdisponering, SRO","PE",10,0,null,null,0,""]
["Gasdisponering - elproduktionsanlæg, Konstruktioner","PE",60,0,null,null,0,""]
["Gasdisponering - elproduktionsanlæg, Mek/EL","PE",20,0,null,null,0,""]
["Gasdisponering - elproduktionsanlæg, SRO","PE",10,0,null,null,0,""]
["Gasrensning - Aktivt kulfilter","m3/t",15,0,null,null,0,""]
["Gasrensning - Biologisk skrubber","m3/t",15,0,null,null,0,""]
["Opgraderingsanlæg - Membran","m3/t",15,0,null,null,0,""]
["Varmeproduktionsanlæg","m3/t",15,0,null,null,0,""]
["Slutafvanding, slam - lavteknologisk (slambede), Konstruktioner","PE",60,0,null,null,0,""]
["Slutafvanding, slam - lavteknologisk (slambede), Mek/EL","PE",20,0,null,null,0,""]
["Slutafvanding, slam - lavteknologisk (slambede), SRO","PE",10,0,null,null,0,""]
["Slutafvanding, slam - højteknologisk (centrifuger), Konstruktioner","PE",60,0,null,null,0,""]
["Slutafvanding, slam - højteknologisk (centrifuger), Mek/El","PE",20,0,null,null,0,""]
["Slutafvanding, slam - højteknologisk (centrifuger), SRO","PE",10,0,null,null,0,""]
["Renseanlæg >= 5.000 PE, Slamdisponering",null,null,null,null,null,{"$f":"IF(D323=\"\",IF(E323>0,\"Ny data\",IF(E323=\"\",\"\",0)),IF(D323=0,IF(E323=0,0,\"Ny data\"),(E323-D323)/D323))","v":""},{"$f":"IF(E323=\"\",IF(F323>0,\"Ny data\",IF(F323=\"\",\"\",0)),IF(E323=0,IF(F323=0,0,\"Ny data\"),(F323-E323)/E323))","v":""}]
["Slutdisponering, slam - lavteknologisk (slammineralisering), Konstruktioner","PE",60,0,null,null,0,""]
["Slutdisponering, slam - lavteknologisk (slammineralisering), Mek/EL","PE",20,0,null,null,0,""]
["Slutdisponering, slam - lavteknologisk (slammineralisering), SRO","PE",10,0,null,null,0,""]
["Slutdisponering, slam - højteknologisk (slamtørring), Konstruktioner","PE",60,0,null,null,0,""]
["Slutdisponering, slam - højteknologisk (slamtørring), Mek/EL","PE",20,0,null,null,0,""]
["Slutdisponering, slam - højteknologisk (slamtørring), SRO","PE",10,0,null,null,0,""]
["Slutdisponering, slam - højteknologisk (slamtørring og -forbrænding), Konstruktioner","PE",60,0,null,null,0,""]
["Slutdisponering, slam - højteknologisk (slamtørring og -forbrænding), Mek/EL","PE",20,0,null,null,0,""]
["Slutdisponering, slam - højteknologisk (slamtørring og -forbrænding), SRO","PE",10,0,null,null,0,""]
["Renseanlæg 7",null,null,null,null,null,"",""]
["Mindre renseanlæg",null,null,null,null,null,"",""]
["Mindre renseanlæg < 5.000 PE","PE",40,0,null,null,0,""]
["Renseanlæg >= 5.000 PE, Vandbehandling",null,null,null,null,null,"",""]
["Indløb med riste, Konstruktioner","PE",60,0,null,null,0,""]
["Indløb med riste, Mek/EL","PE",20,0,null,null,0,""]
["Indløb med riste, SRO","PE",10,0,null,null,0,""]
["Sand- og fedtfang, Kontruktioner","PE",60,0,null,null,0,""]
["Sand- og fedtfang, Mek/EL","PE",20,0,null,null,0,""]
["Sand- og fedtfang, SRO","PE",10,0,null,null,0,""]
["Forklaring, Konstruktioner","PE",60,0,null,null,0,""]
["Forklaring, Mek/EL","PE",20,0,null,null,0,""]
["Forklaring, SRO","PE",10,0,null,null,0,""]
["Beluftningstanke, Konstruktioner","PE",60,0,null,null,0,""]
["Beluftningstanke, Mek/EL","PE",20,0,null,null,0,""]
["Beluftningstanke, SRO","PE",10,0,null,null,0,""]
["Efterklaringstanke, Konstruktioner","PE",60,0,null,null,0,""]
["Efterklaringstanke, Mek/El","PE",20,0,null,null,0,""]
["Efterklaringstanke, SRO","PE",10,0,null,null,0,""]
["Efterbehandlingsanlæg (sandfilter), Konstruktioner","PE",60,0,null,null,0,""]
["Efterbehandlingsanlæg (sandfilter), Mek/EL","PE",20,0,null,null,0,""]
["Efterbehandlingsanlæg (sandfilter), SRO","PE",10,0,null,null,0,""]
["Renseanlæg >= 5.000 PE, Slambehandling",null,null,null,null,null,"",""]
["Forafvanding, slam, Konstruktion","PE",60,0,null,null,0,""]
["Forafvanding, slam, Mek/EL","PE",20,0,null,null,0,""]
["Forafvanding, slam, SRO","PE",10,0,null,null,0,""]
["Rådnetanke, slam, Konstruktioner","PE",60,0,null,null,0,""]
["Rådnetanke, slam, Mek/EL","PE",20,0,null,null,0,""]
["Rådnetanke, slam, SRO","PE",10,0,null,null,0,""]
["Gasdisponering, Konstruktioner","PE",60,0,null,null,0,""]
["Gasdisponering, Mek/EL","PE",20,0,null,null,0,""]
["Gasdisponering, SRO","PE",10,0,null,null,0,""]
["Gasdisponering - elproduktionsanlæg, Konstruktioner","PE",60,0,null,null,0,""]
["Gasdisponering - elproduktionsanlæg, Mek/EL","PE",20,0,null,null,0,""]
["Gasdisponering - elproduktionsanlæg, SRO","PE",10,0,null,null,0,""]
["Gasrensning - Aktivt kulfilter","m3/t",15,0,null,null,0,""]
["Gasrensning - Biologisk skrubber","m3/t",15,0,null,null,0,""]
["Opgraderingsanlæg - Membran","m3/t",15,0,null,null,0,""]
["Varmeproduktionsanlæg","m3/t",15,0,null,null,0,""]
["Slutafvanding, slam - lavteknologisk (slambede), Konstruktioner","PE",60,0,null,null,0,""]
["Slutafvanding, slam - lavteknologisk (slambede), Mek/EL","PE",20,0,null,null,0,""]
["Slutafvanding, slam - lavteknologisk (slambede), SRO","PE",10,0,null,null,0,""]
["Slutafvanding, slam - højteknologisk (centrifuger), Konstruktioner","PE",60,0,null,null,0,""]
["Slutafvanding, slam - højteknologisk (centrifuger), Mek/El","PE",20,0,null,null,0,""]
["Slutafvanding, slam - højteknologisk (centrifuger), SRO","PE",10,0,null,null,0,""]
["Renseanlæg >= 5.000 PE, Slamdisponering",null,null,null,null,null,"",""]
["Slutdisponering, slam - lavteknologisk (slammineralisering), Konstruktioner","PE",60,0,null,null,0,""]
["Slutdisponering, slam - lavteknologisk (slammineralisering), Mek/EL","PE",20,0,null,null,0,""]
["Slutdisponering, slam - lavteknologisk (slammineralisering), SRO","PE",10,0,null,null,0,""]
["Slutdisponering, slam - højteknologisk (slamtørring), Konstruktioner","PE",60,0,null,null,0,""]
["Slutdisponering, slam - højteknologisk (slamtørring), Mek/EL","PE",20,0,null,null,0,""]
["Slutdisponering, slam - højteknologisk (slamtørring), SRO","PE",10,0,null,null,0,""]
["Slutdisponering, slam - højteknologisk (slamtørring og -forbrænding), Konstruktioner","PE",60,0,null,null,0,""]
["Slutdisponering, slam - højteknologisk (slamtørring og -forbrænding), Mek/EL","PE",20,0,null,null,0,""]
["Slutdisponering, slam - højteknologisk (slamtørring og -forbrænding), SRO","PE",10,0,null,null,{"$f":"IF(D387=\"\",IF(E387>0,\"Ny data\",IF(E387=\"\",\"\",0)),IF(D387=0,IF(E387=0,0,\"Ny data\"),(E387-D387)/D387))","v":0},{"$f":"IF(E387=\"\",IF(F387>0,\"Ny data\",IF(F387=\"\",\"\",0)),IF(E387=0,IF(F387=0,0,\"Ny data\"),(F387-E387)/E387))","v":""}]
["Renseanlæg 8",null,null,null,null,null,"",""]
["Mindre renseanlæg",null,null,null,null,null,"",""]
["Mindre renseanlæg < 5.000 PE","PE",40,0,null,null,0,""]
["Renseanlæg >= 5.000 PE, Vandbehandling",null,null,null,null,null,"",""]
["Indløb med riste, Konstruktioner","PE",60,0,null,null,0,""]
["Indløb med riste, Mek/EL","PE",20,0,null,null,0,""]
["Indløb med riste, SRO","PE",10,0,null,null,0,""]
["Sand- og fedtfang, Kontruktioner","PE",60,0,null,null,0,""]
["Sand- og fedtfang, Mek/EL","PE",20,0,null,null,0,""]
["Sand- og fedtfang, SRO","PE",10,0,null,null,0,""]
["Forklaring, Konstruktioner","PE",60,0,null,null,0,""]
["Forklaring, Mek/EL","PE",20,0,null,null,0,""]
["Forklaring, SRO","PE",10,0,null,null,0,""]
["Beluftningstanke, Konstruktioner","PE",60,0,null,null,0,""]
["Beluftningstanke, Mek/EL","PE",20,0,null,null,0,""]
["Beluftningstanke, SRO","PE",10,0,null,null,0,""]
["Efterklaringstanke, Konstruktioner","PE",60,0,null,null,0,""]
["Efterklaringstanke, Mek/El","PE",20,0,null,null,0,""]
["Efterklaringstanke, SRO","PE",10,0,null,null,0,""]
["Efterbehandlingsanlæg (sandfilter), Konstruktioner","PE",60,0,null,null,0,""]
["Efterbehandlingsanlæg (sandfilter), Mek/EL","PE",20,0,null,null,0,""]
["Efterbehandlingsanlæg (sandfilter), SRO","PE",10,0,null,null,0,""]
["Renseanlæg >= 5.000 PE, Slambehandling",null,null,null,null,null,"",""]
["Forafvanding, slam, Konstruktion","PE",60,0,null,null,0,""]
["Forafvanding, slam, Mek/EL","PE",20,0,null,null,0,""]
["Forafvanding, slam, SRO","PE",10,0,null,null,0,""]
["Rådnetanke, slam, Konstruktioner","PE",60,0,null,null,0,""]
["Rådnetanke, slam, Mek/EL","PE",20,0,null,null,0,""]
["Rådnetanke, slam, SRO","PE",10,0,null,null,0,""]
["Gasdisponering, Konstruktioner","PE",60,0,null,null,0,""]
["Gasdisponering, Mek/EL","PE",20,0,null,null,0,""]
["Gasdisponering, SRO","PE",10,0,null,null,0,""]
["Gasdisponering - elproduktionsanlæg, Konstruktioner","PE",60,0,null,null,0,""]
["Gasdisponering - elproduktionsanlæg, Mek/EL","PE",20,0,null,null,0,""]
["Gasdisponering - elproduktionsanlæg, SRO","PE",10,0,null,null,0,""]
["Gasrensning - Aktivt kulfilter","m3/t",15,0,null,null,0,""]
["Gasrensning - Biologisk skrubber","m3/t",15,0,null,null,0,""]
["Opgraderingsanlæg - Membran","m3/t",15,0,null,null,0,""]
["Varmeproduktionsanlæg","m3/t",15,0,null,null,0,""]
["Slutafvanding, slam - lavteknologisk (slambede), Konstruktioner","PE",60,0,null,null,0,""]
["Slutafvanding, slam - lavteknologisk (slambede), Mek/EL","PE",20,0,null,null,0,""]
["Slutafvanding, slam - lavteknologisk (slambede), SRO","PE",10,0,null,null,0,""]
["Slutafvanding, slam - højteknologisk (centrifuger), Konstruktioner","PE",60,0,null,null,0,""]
["Slutafvanding, slam - højteknologisk (centrifuger), Mek/El","PE",20,0,null,null,0,""]
["Slutafvanding, slam - højteknologisk (centrifuger), SRO","PE",10,0,null,null,0,""]
["Renseanlæg >= 5.000 PE, Slamdisponering",null,null,null,null,null,"",""]
["Slutdisponering, slam - lavteknologisk (slammineralisering), Konstruktioner","PE",60,0,null,null,0,""]
["Slutdisponering, slam - lavteknologisk (slammineralisering), Mek/EL","PE",20,0,null,null,0,""]
["Slutdisponering, slam - lavteknologisk (slammineralisering), SRO","PE",10,0,null,null,0,""]
["Slutdisponering, slam - højteknologisk (slamtørring), Konstruktioner","PE",60,0,null,null,0,""]
["Slutdisponering, slam - højteknologisk (slamtørring), Mek/EL","PE",20,0,null,null,0,""]
["Slutdisponering, slam - højteknologisk (slamtørring), SRO","PE",10,0,null,null,0,""]
["Slutdisponering, slam - højteknologisk (slamtørring og -forbrænding), Konstruktioner","PE",60,0,null,null,0,""]
["Slutdisponering, slam - højteknologisk (slamtørring og -forbrænding), Mek/EL","PE",20,0,null,null,0,""]
["Slutdisponering, slam - højteknologisk (slamtørring og -forbrænding), SRO","PE",10,0,null,null,0,""]
["Renseanlæg 9",null,null,null,null,null,"",""]
["Mindre renseanlæg",null,null,null,null,null,"",""]
["Mindre renseanlæg < 5.000 PE","PE",40,0,null,null,0,""]
["Renseanlæg >= 5.000 PE, Vandbehandling",null,null,null,null,null,"",""]
["Indløb med riste, Konstruktioner","PE",60,0,null,null,0,""]
["Indløb med riste, Mek/EL","PE",20,0,null,null,0,""]
["Indløb med riste, SRO","PE",10,0,null,null,0,""]
["Sand- og fedtfang, Kontruktioner","PE",60,0,null,null,0,""]
["Sand- og fedtfang, Mek/EL","PE",20,0,null,null,{"$f":"IF(D451=\"\",IF(E451>0,\"Ny data\",IF(E451=\"\",\"\",0)),IF(D451=0,IF(E451=0,0,\"Ny data\"),(E451-D451)/D451))","v":0},{"$f":"IF(E451=\"\",IF(F451>0,\"Ny data\",IF(F451=\"\",\"\",0)),IF(E451=0,IF(F451=0,0,\"Ny data\"),(F451-E451)/E451))","v":""}]
["Sand- og fedtfang, SRO","PE",10,0,null,null,0,""]
["Forklaring, Konstruktioner","PE",60,0,null,null,0,""]
["Forklaring, Mek/EL","PE",20,0,null,null,0,""]
["Forklaring, SRO","PE",10,0,null,null,0,""]
["Beluftningstanke, Konstruktioner","PE",60,0,null,null,0,""]
["Beluftningstanke, Mek/EL","PE",20,0,null,null,0,""]
["Beluftningstanke, SRO","PE",10,0,null,null,0,""]
["Efterklaringstanke, Konstruktioner","PE",60,0,null,null,0,""]
["Efterklaringstanke, Mek/El","PE",20,0,null,null,0,""]
["Efterklaringstanke, SRO","PE",10,0,null,null,0,""]
["Efterbehandlingsanlæg (sandfilter), Konstruktioner","PE",60,0,null,null,0,""]
["Efterbehandlingsanlæg (sandfilter), Mek/EL","PE",20,0,null,null,0,""]
["Efterbehandlingsanlæg (sandfilter), SRO","PE",10,0,null,null,0,""]
["Renseanlæg >= 5.000 PE, Slambehandling",null,null,null,null,null,"",""]
["Forafvanding, slam, Konstruktion","PE",60,0,null,null,0,""]
["Forafvanding, slam, Mek/EL","PE",20,0,null,null,0,""]
["Forafvanding, slam, SRO","PE",10,0,null,null,0,""]
["Rådnetanke, slam, Konstruktioner","PE",60,0,null,null,0,""]
["Rådnetanke, slam, Mek/EL","PE",20,0,null,null,0,""]
["Rådnetanke, slam, SRO","PE",10,0,null,null,0,""]
["Gasdisponering, Konstruktioner","PE",60,0,null,null,0,""]
["Gasdisponering, Mek/EL","PE",20,0,null,null,0,""]
["Gasdisponering, SRO","PE",10,0,null,null,0,""]
["Gasdisponering - elproduktionsanlæg, Konstruktioner","PE",60,0,null,null,0,""]
["Gasdisponering - elproduktionsanlæg, Mek/EL","PE",20,0,null,null,0,""]
["Gasdisponering - elproduktionsanlæg, SRO","PE",10,0,null,null,0,""]
["Gasrensning - Aktivt kulfilter","m3/t",15,0,null,null,0,""]
["Gasrensning - Biologisk skrubber","m3/t",15,0,null,null,0,""]
["Opgraderingsanlæg - Membran","m3/t",15,0,null,null,0,""]
["Varmeproduktionsanlæg","m3/t",15,0,null,null,0,""]
["Slutafvanding, slam - lavteknologisk (slambede), Konstruktioner","PE",60,0,null,null,0,""]
["Slutafvanding, slam - lavteknologisk (slambede), Mek/EL","PE",20,0,null,null,0,""]
["Slutafvanding, slam - lavteknologisk (slambede), SRO","PE",10,0,null,null,0,""]
["Slutafvanding, slam - højteknologisk (centrifuger), Konstruktioner","PE",60,0,null,null,0,""]
["Slutafvanding, slam - højteknologisk (centrifuger), Mek/El","PE",20,0,null,null,0,""]
["Slutafvanding, slam - højteknologisk (centrifuger), SRO","PE",10,0,null,null,0,""]
["Renseanlæg >= 5.000 PE, Slamdisponering",null,null,null,null,null,"",""]
["Slutdisponering, slam - lavteknologisk (slammineralisering), Konstruktioner","PE",60,0,null,null,0,""]
["Slutdisponering, slam - lavteknologisk (slammineralisering), Mek/EL","PE",20,0,null,null,0,""]
["Slutdisponering, slam - lavteknologisk (slammineralisering), SRO","PE",10,0,null,null,0,""]
["Slutdisponering, slam - højteknologisk (slamtørring), Konstruktioner","PE",60,0,null,null,0,""]
["Slutdisponering, slam - højteknologisk (slamtørring), Mek/EL","PE",20,0,null,null,0,""]
["Slutdisponering, slam - højteknologisk (slamtørring), SRO","PE",10,0,null,null,0,""]
["Slutdisponering, slam - højteknologisk (slamtørring og -forbrænding), Konstruktioner","PE",60,0,null,null,0,""]
["Slutdisponering, slam - højteknologisk (slamtørring og -forbrænding), Mek/EL","PE",20,0,null,null,0,""]
["Slutdisponering, slam - højteknologisk (slamtørring og -forbrænding), SRO","PE",10,0,null,null,0,""]
["Renseanlæg 10",null,null,null,null,null,"",""]
["Mindre renseanlæg",null,null,null,null,null,"",""]
["Mindre renseanlæg < 5.000 PE","PE",40,0,null,null,0,""]
["Renseanlæg >= 5.000 PE, Vandbehandling",null,null,null,null,null,"",""]
["Indløb med riste, Konstruktioner","PE",60,0,null,null,0,""]
["Indløb med riste, Mek/EL","PE",20,0,null,null,0,""]
["Indløb med riste, SRO","PE",10,0,null,null,0,""]
["Sand- og fedtfang, Kontruktioner","PE",60,0,null,null,0,""]
["Sand- og fedtfang, Mek/EL","PE",20,0,null,null,0,""]
["Sand- og fedtfang, SRO","PE",10,0,null,null,0,""]
["Forklaring, Konstruktioner","PE",60,0,null,null,0,""]
["Forklaring, Mek/EL","PE",20,0,null,null,0,""]
["Forklaring, SRO","PE",10,0,null,null,0,""]
["Beluftningstanke, Konstruktioner","PE",60,0,null,null,0,""]
["Beluftningstanke, Mek/EL","PE",20,0,null,null,0,""]
["Beluftningstanke, SRO","PE",10,0,null,null,0,""]
["Efterklaringstanke, Konstruktioner","PE",60,0,null,null,0,""]
["Efterklaringstanke, Mek/El","PE",20,0,null,null,{"$f":"IF(D515=\"\",IF(E515>0,\"Ny data\",IF(E515=\"\",\"\",0)),IF(D515=0,IF(E515=0,0,\"Ny data\"),(E515-D515)/D515))","v":0},{"$f":"IF(E515=\"\",IF(F515>0,\"Ny data\",IF(F515=\"\",\"\",0)),IF(E515=0,IF(F515=0,0,\"Ny data\"),(F515-E515)/E515))","v":""}]
["Efterklaringstanke, SRO","PE",10,0,null,null,0,""]
["Efterbehandlingsanlæg (sandfilter), Konstruktioner","PE",60,0,null,null,0,""]
["Efterbehandlingsanlæg (sandfilter), Mek/EL","PE",20,0,null,null,0,""]
["Efterbehandlingsanlæg (sandfilter), SRO","PE",10,0,null,null,0,""]
["Renseanlæg >= 5.000 PE, Slambehandling",null,null,null,null,null,"",""]
["Forafvanding, slam, Konstruktion","PE",60,0,null,null,0,""]
["Forafvanding, slam, Mek/EL","PE",20,0,null,null,0,""]
["Forafvanding, slam, SRO","PE",10,0,null,null,0,""]
["Rådnetanke, slam, Konstruktioner","PE",60,0,null,null,0,""]
["Rådnetanke, slam, Mek/EL","PE",20,0,null,null,0,""]
["Rådnetanke, slam, SRO","PE",10,0,null,null,0,""]
["Gasdisponering, Konstruktioner","PE",60,0,null,null,0,""]
["Gasdisponering, Mek/EL","PE",20,0,null,null,0,""]
["Gasdisponering, SRO","PE",10,0,null,null,0,""]
["Gasdisponering - elproduktionsanlæg, Konstruktioner","PE",60,0,null,null,0,""]
["Gasdisponering - elproduktionsanlæg, Mek/EL","PE",20,0,null,null,0,""]
["Gasdisponering - elproduktionsanlæg, SRO","PE",10,0,null,null,0,""]
["Gasrensning - Aktivt kulfilter","m3/t",15,0,null,null,0,""]
["Gasrensning - Biologisk skrubber","m3/t",15,0,null,null,0,""]
["Opgraderingsanlæg - Membran","m3/t",15,0,null,null,0,""]
["Varmeproduktionsanlæg","m3/t",15,0,null,null,0,""]
["Slutafvanding, slam - lavteknologisk (slambede), Konstruktioner","PE",60,0,null,null,0,""]
["Slutafvanding, slam - lavteknologisk (slambede), Mek/EL","PE",20,0,null,null,0,""]
["Slutafvanding, slam - lavteknologisk (slambede), SRO","PE",10,0,null,null,0,""]
["Slutafvanding, slam - højteknologisk (centrifuger), Konstruktioner","PE",60,0,null,null,0,""]
["Slutafvanding, slam - højteknologisk (centrifuger), Mek/El","PE",20,0,null,null,0,""]
["Slutafvanding, slam - højteknologisk (centrifuger), SRO","PE",10,0,null,null,0,""]
["Renseanlæg >= 5.000 PE, Slamdisponering",null,null,null,null,null,"",""]
["Slutdisponering, slam - lavteknologisk (slammineralisering), Konstruktioner","PE",60,0,null,null,0,""]
["Slutdisponering, slam - lavteknologisk (slammineralisering), Mek/EL","PE",20,0,null,null,0,""]
["Slutdisponering, slam - lavteknologisk (slammineralisering), SRO","PE",10,0,null,null,0,""]
["Slutdisponering, slam - højteknologisk (slamtørring), Konstruktioner","PE",60,0,null,null,0,""]
["Slutdisponering, slam - højteknologisk (slamtørring), Mek/EL","PE",20,0,null,null,0,""]
["Slutdisponering, slam - højteknologisk (slamtørring), SRO","PE",10,0,null,null,0,""]
["Slutdisponering, slam - højteknologisk (slamtørring og -forbrænding), Konstruktioner","PE",60,0,null,null,0,""]
["Slutdisponering, slam - højteknologisk (slamtørring og -forbrænding), Mek/EL","PE",20,0,null,null,0,""]
["Slutdisponering, slam - højteknologisk (slamtørring og -forbrænding), SRO","PE",20,0,null,null,0,""]

{"sheet":"Distributionsanlæg","index":1,"n_rows":318,"n_cols":9,"rows_kept":318,"cut":false,"hidden":false,"merged":[[0,0,1,0],[0,1,1,1],[0,2,1,2],[0,3,1,3],[0,8,1,8],[0,4,1,4],[0,5,1,5],[0,6,1,6],[0,7,1,7]]}
["Distributionsanlæg","Enhed","Standard-levetid","Samlet mængde per 31/12-2022","Samlet mængde per 31/12-2023","Samlet mængde per 31/12-2024","Afvigelse 2022-2023","Afvigelse 2023-2024","Bemærkninger"]
[]
["Ledningsnet - Land",null,null,null,null,null,{"$f":"IF(D3=\"\",IF(E3>0,\"Ny data\",IF(E3=\"\",\"\",0)),IF(D3=0,IF(E3=0,0,\"Ny data\"),(E3-D3)/D3))","v":""},{"$f":"IF(E3=\"\",IF(F3>0,\"Ny data\",IF(F3=\"\",\"\",0)),IF(E3=0,IF(F3=0,0,\"Ny data\"),(F3-E3)/E3))","v":""}]
["Ledningsnet ≤ Ø 200 mm ","meter",75,25588.44079253641,26355.482550259971,26354.105209409972,2.9976103817442822E-2,-5.2260126422337298E-5]
["Ø 200 mm < Ledningsnet ≤ Ø 500 mm ","meter",75,11484.207153315792,11243.12283335,11243.12283335,-2.0992682972997806E-2,0]
["Ø 500 mm < Ledningsnet ≤ Ø 800 mm","meter",75,4742.0239227008979,4577.17968311,4765.4375378799987,-3.4762422602247871E-2,4.1129662325619119E-2]
["Ø 800 mm < Ledningsnet ≤ Ø 1000 mm","meter",75,1119.5523076117872,1080.7197367799999,1080.7197367799999,-3.4685803037309046E-2,0]
["Ø 1000 mm < Ledningsnet ≤ Ø 1200 mm","meter",75,97.029636806968583,93.656615500000001,93.656615500000001,-3.4762794316945587E-2,0]
["Ø 1200 mm < Ledningsnet ≤ Ø 1600 mm","meter",75,185.89412510114744,179.43191733999998,179.43191733999998,-3.4762840179221807E-2,0]
["Ledningsnet > Ø 1600 mm (rørbassiner og transportledninger)","meter",75,277.57205448839846,267.92087586000002,267.92087586000002,-3.4769993853260274E-2,0]
["Strømpeforing ≤ Ø 200 mm","meter",50,496.53200455559738,470,470.4049981,-5.3434631226528632E-2,8.6169808510638346E-4]
["Strømpeforing Ø 200 mm < Ledningsnet ≤ Ø 500 mm","meter",50,717.1555682861499,673,673.01336088000005,-6.1570418245057164E-2,1.9852719167979497E-5]
["Strømpeforing Ø 500 mm < Ledningsnet ≤ Ø 800 mm","meter",50,1175.2541208667062,1104,1104.2502158899999,-6.0628692638966412E-2,2.2664482789849259E-4]
["Strømpeforing Ø 800 mm < Ledningsnet ≤ Ø 1000 mm","meter",50,0,0,0,0,0]
["Strømpeforing Ø 1000 mm < Ledningsnet ≤ Ø 1200 mm","meter",50,0,0,0,0,0]
["Strømpeforing Ø 1200 mm < Ledningsnet ≤ Ø 1600 mm","meter",50,0,0,0,0,0]
["Ledningsnet - By",null,null,null,null,null,"",""]
["Ledningsnet ≤ Ø 200 mm ","meter",75,196461.23037932394,234327.10601594977,235086.93004472979,0.19273968489108539,3.2425784694677879E-3]
["Ø 200 mm < Ledningsnet ≤ Ø 500 mm ","meter",75,114175.70956797646,86597.294619190041,86445.483340409992,-0.24154362651337094,-1.7530718418818554E-3,"Difference skyldes, at alle stikledninger er lagt til i \"Ledningsnet <= ø200\" - i stedet for at blive fordelt på alle dimensionsgrupper"]
["Ø 500 mm < Ledningsnet ≤ Ø 800 mm","meter",75,33367.034158841321,25487.547259790015,25472.624642020004,-0.23614585766123491,-5.854866150087944E-4,"Difference skyldes, at alle stikledninger er lagt til i \"Ledningsnet <= ø200\" - i stedet for at blive fordelt på alle dimensionsgrupper"]
["Ø 800 mm < Ledningsnet ≤ Ø 1000 mm","meter",75,5723.1098700167367,4371.9630755299986,4371.9455166299986,-0.2360861184170813,-4.0162507543390917E-6,"Difference skyldes, at alle stikledninger er lagt til i \"Ledningsnet <= ø200\" - i stedet for at blive fordelt på alle dimensionsgrupper"]
["Ø 1000 mm < Ledningsnet ≤ Ø 1200 mm","meter",75,2913.5071276029685,2225.70349846,2219.6605736100005,-0.23607411927248162,-2.7150628348208577E-3,"Difference skyldes, at alle stikledninger er lagt til i \"Ledningsnet <= ø200\" - i stedet for at blive fordelt på alle dimensionsgrupper"]
["Ø 1200 mm < Ledningsnet ≤ Ø 1600 mm","meter",75,3551.0371194007239,2708.87863161,2708.87863161,-0.2371584580712148,0,"Difference skyldes, at alle stikledninger er lagt til i \"Ledningsnet <= ø200\" - i stedet for at blive fordelt på alle dimensionsgrupper"]
["Ledningsnet > Ø 1600 mm (rørbassiner og transportledninger)","meter",75,109.89467655753664,84.570912059999998,83.093932440000003,-0.23043668074566007,-1.7464392709305665E-2,"Difference skyldes, at alle stikledninger er lagt til i \"Ledningsnet <= ø200\" - i stedet for at blive fordelt på alle dimensionsgrupper"]
["Strømpeforing ≤ Ø 200 mm","meter",50,25141.238177478208,26606,{"$f":"27191.66977403+159","v":27350.669774030001},5.8261323972259312E-2,2.7988791025708507E-2]
["Strømpeforing Ø 200 mm < Ledningsnet ≤ Ø 500 mm","meter",50,23623.732664991774,19664,19464.741716040011,-0.16761672345114784,-1.0133151137102779E-2]
["Strømpeforing Ø 500 mm < Ledningsnet ≤ Ø 800 mm","meter",50,9000.966655961638,7207,7143.1769027999926,-0.19930822149790262,-8.8557093381444983E-3]
["Strømpeforing Ø 800 mm < Ledningsnet ≤ Ø 1000 mm","meter",50,1077.9366016293884,820,819.60853042999997,-0.2392873581243056,-4.7740191463417874E-4,"Der er ikke tilgået nogle ledninger her i 2023, så forskellen er i data fra sidste år "]
["Strømpeforing Ø 1000 mm < Ledningsnet ≤ Ø 1200 mm","meter",50,242.72102663059232,185,184.55304369000001,-0.23780810188496962,-2.4159800540540012E-3,"Der er ikke tilgået nogle ledninger her i 2023, så forskellen er i data fra sidste år "]
["Strømpeforing Ø 1200 mm < Ledningsnet ≤ Ø 1600 mm","meter",50,319.670129118977,243,243.06105782000003,-0.23984139315826219,2.5126674897131876E-4,"Der er ikke tilgået nogle ledninger her i 2023, så forskellen er i data fra sidste år "]
["Ledningsnet - City",null,null,null,null,null,"",""]
["Ledningsnet ≤ Ø 200 mm ","meter",75,17330.351747841087,23291.337195679989,23349.563400079995,0.34396217310369864,2.4999081809182256E-3,"Difference skyldes, at alle stikledninger er lagt til i \"Ledningsnet <= ø200\" - i stedet for at blive fordelt på alle dimensionsgrupper"]
["Ø 200 mm < Ledningsnet ≤ Ø 500 mm ","meter",75,11481.831476120991,7350.0721214499954,7308.5719625899965,-0.35985194202370097,-5.6462247137531382E-3,"Difference skyldes, at alle stikledninger er lagt til i \"Ledningsnet <= ø200\" - i stedet for at blive fordelt på alle dimensionsgrupper"]
["Ø 500 mm < Ledningsnet ≤ Ø 800 mm","meter",75,2841.5754480498836,1816.6238012699998,1809.4957796999997,-0.36069837508037578,-3.9237741820936775E-3,"Difference skyldes, at alle stikledninger er lagt til i \"Ledningsnet <= ø200\" - i stedet for at blive fordelt på alle dimensionsgrupper"]
["Ø 800 mm < Ledningsnet ≤ Ø 1000 mm","meter",75,1458.8374554045934,932.62425988999996,931.73097760000007,-0.36070721488889496,-9.5781584118908507E-4,"Difference skyldes, at alle stikledninger er lagt til i \"Ledningsnet <= ø200\" - i stedet for at blive fordelt på alle dimensionsgrupper"]
["Ø 1000 mm < Ledningsnet ≤ Ø 1200 mm","meter",75,605.08410129876358,386.83004358000005,383.79728539999996,-0.36070036751965395,-7.8400275013098472E-3,"Difference skyldes, at alle stikledninger er lagt til i \"Ledningsnet <= ø200\" - i stedet for at blive fordelt på alle dimensionsgrupper"]
["Ø 1200 mm < Ledningsnet ≤ Ø 1600 mm","meter",75,349.48009337469392,223.42606165000001,219.59553184000001,-0.36069016265697718,-1.7144507591064194E-2,"Difference skyldes, at alle stikledninger er lagt til i \"Ledningsnet <= ø200\" - i stedet for at blive fordelt på alle dimensionsgrupper"]
["Ledningsnet > Ø 1600 mm (rørbassiner og transportledninger)","meter",75,0,0,0,0,0]
["Strømpeforing ≤ Ø 200 mm","meter",50,511.09042115500495,469,468.67529602999991,-8.2354157723961027E-2,-6.9233255863557967E-4]
["Strømpeforing Ø 200 mm < Ledningsnet ≤ Ø 500 mm","meter",50,1295.7472438183097,768,768.00203300999999,-0.40729181276368642,2.6471484374882928E-6,"Der er ikke tilgået nogle ledninger her i 2023, så forskellen er i data fra sidste år"]
["Strømpeforing Ø 500 mm < Ledningsnet ≤ Ø 800 mm","meter",50,0,0,0,0,0]
["Strømpeforing Ø 800 mm < Ledningsnet ≤ Ø 1000 mm","meter",50,0.99611487723951297,1,0.58266043999999995,3.900275810811787E-3,-0.41733956000000005,"en meget lille rettelse på 0,4 meter, kan være forskellige årsager til dette."]
["Strømpeforing Ø 1000 mm < Ledningsnet ≤ Ø 1200 mm","meter",50,171.01398404081482,100,100.02555679,-0.4152524978534291,2.5556789999995998E-4,"Der er ikke tilgået nogle ledninger her i 2023, så forskellen er i data fra sidste år"]
["Strømpeforing Ø 1200 mm < Ledningsnet ≤ Ø 1600 mm","meter",50,0,0,0,0,0]
["Ledningsnet - Indre city",null,null,null,null,null,"",""]
["Ledningsnet ≤ Ø 200 mm ","meter",75,0,0,0,0,0]
["Ø 200 mm < Ledningsnet ≤ Ø 500 mm ","meter",75,0,0,0,0,0]
["Ø 500 mm < Ledningsnet ≤ Ø 800 mm","meter",75,0,0,0,0,0]
["Ø 800 mm < Ledningsnet ≤ Ø 1000 mm","meter",75,0,0,0,0,0]
["Ø 1000 mm < Ledningsnet ≤ Ø 1200 mm","meter",75,0,0,0,0,0]
["Ø 1200 mm < Ledningsnet ≤ Ø 1600 mm","meter",75,0,0,0,0,0]
["Ledningsnet > Ø 1600 mm (rørbassiner og transportledninger)","meter",75,0,0,0,0,0]
["Strømpeforing ≤ Ø 200 mm","meter",50,0,0,0,0,0]
["Strømpeforing Ø 200 mm < Ledningsnet ≤ Ø 500 mm","meter",50,0,0,0,0,0]
["Strømpeforing Ø 500 mm < Ledningsnet ≤ Ø 800 mm","meter",50,0,0,0,0,0]
["Strømpeforing Ø 800 mm < Ledningsnet ≤ Ø 1000 mm","meter",50,0,0,0,0,0]
["Strømpeforing Ø 1000 mm < Ledningsnet ≤ Ø 1200 mm","meter",50,0,0,0,0,0]
["Strømpeforing Ø 1200 mm < Ledningsnet ≤ Ø 1600 mm","meter",50,0,0,0,0,0]
["Brønde og stik, ledningsnet - Land",null,null,null,null,null,"",""]
["Brønde","stk.",75,530,532,535,3.7735849056603774E-3,5.6390977443609019E-3]
["Stik","stk.",75,252,250,253,-7.9365079365079361E-3,1.2E-2]
["Brønde og stik, ledningsnet - By",null,null,null,null,null,"",""]
["Brønde","stk.",75,7215,7227,7262,1.6632016632016633E-3,4.8429500484295004E-3]
["Stik","stk.",75,14019,13823,13821,-1.3981025750766816E-2,-1.4468639224480938E-4]
["Brønde og stik, ledningsnet - City",null,null,null,null,null,"",""]
["Brønde","stk.",75,724,727,724,4.1436464088397788E-3,-4.1265474552957355E-3]
["Stik","stk.",75,2048,2031,2042,{"$f":"IF(D67=\"\",IF(E67>0,\"Ny data\",IF(E67=\"\",\"\",0)),IF(D67=0,IF(E67=0,0,\"Ny data\"),(E67-D67)/D67))","v":-8.30078125E-3},{"$f":"IF(E67=\"\",IF(F67>0,\"Ny data\",IF(F67=\"\",\"\",0)),IF(E67=0,IF(F67=0,0,\"Ny data\"),(F67-E67)/E67))","v":5.4160512063023145E-3}]
["Brønde og stik, ledningsnet - Indre city",null,null,null,null,null,"",""]
["Brønde","stk.",75,0,0,0,0,0]
["Stik","stk.",75,0,0,0,0,0]
["Små pumpestationer (<100 l/s) inkl. SRO-anlæg - Land",null,null,null,null,null,"",""]
["Tryksatte minipumpestationer (husstandssystemer)","stk.",30,38,38,38,0,0]
["Pumpestationer i brønde (< 6,25 m2), Konstruktioner","stk.",50,22,22,22,0,0]
["Pumpestationer i brønde (< 6,25 m2), Mek/EL","stk.",20,22,22,22,0,0]
["Pumpestationer i brønde (< 6,25 m2), SRO","stk.",10,22,22,22,0,0]
["Pumpestationer m. overbygning (< 20 m2), Konstruktioner","stk.",50,1,1,1,0,0]
["Pumpestationer m. overbygning (< 20 m2), Mek/EL","stk.",20,1,1,1,0,0]
["Pumpestationer m. overbygning (< 20 m2), SRO","stk.",10,1,1,1,0,0]
["Pumpestationer i underjordiske bygværker (<50 m2), Konstruktioner","stk.",50,0,0,0,0,0]
["Pumpestationer i underjordiske bygværker (<50 m2), Mek/El","stk.",20,0,0,0,0,0]
["Pumpestationer i underjordiske bygværker (<50 m2), SRO","stk.",10,0,0,0,0,0]
["Små pumpestationer (<100 l/s) inkl. SRO-anlæg - By",null,null,null,null,null,"",""]
["Tryksatte minipumpestationer (husstandssystemer)","stk.",30,6,6,6,0,0]
["Pumpestationer i brønde (< 6,25 m2), Konstruktioner","stk.",50,39,39,41,0,5.128205128205128E-2]
["Pumpestationer i brønde (< 6,25 m2), Mek/EL","stk.",20,39,39,41,0,5.128205128205128E-2]
["Pumpestationer i brønde (< 6,25 m2), SRO","stk.",10,39,39,41,0,5.128205128205128E-2]
["Pumpestationer m. overbygning (< 20 m2), Konstruktioner","stk.",50,0,0,0,0,0]
["Pumpestationer m. overbygning (< 20 m2), Mek/EL","stk.",20,0,0,0,0,0]
["Pumpestationer m. overbygning (< 20 m2), SRO","stk.",10,0,0,0,0,0]
["Pumpestationer i underjordiske bygværker (<50 m2), Konstruktioner","stk.",50,5,5,5,0,0]
["Pumpestationer i underjordiske bygværker (<50 m2), Mek/El","stk.",20,5,5,5,0,0]
["Pumpestationer i underjordiske bygværker (<50 m2), SRO","stk.",10,5,5,5,0,0]
["Små pumpestationer (<100 l/s) inkl. SRO-anlæg - City",null,null,null,null,null,"",""]
["Tryksatte minipumpestationer (husstandssystemer)","stk.",30,0,0,0,0,0]
["Pumpestationer i brønde (< 6,25 m2), Konstruktioner","stk.",50,1,1,1,0,0]
["Pumpestationer i brønde (< 6,25 m2), Mek/EL","stk.",20,1,1,1,0,0]
["Pumpestationer i brønde (< 6,25 m2), SRO","stk.",10,1,1,1,0,0]
["Pumpestationer m. overbygning (< 20 m2), Konstruktioner","stk.",50,0,0,0,0,0]
["Pumpestationer m. overbygning (< 20 m2), Mek/EL","stk.",20,0,0,0,0,0]
["Pumpestationer m. overbygning (< 20 m2), SRO","stk.",10,0,0,0,0,0]
["Pumpestationer i underjordiske bygværker (<50 m2), Konstruktioner","stk.",50,0,0,0,0,0]
["Pumpestationer i underjordiske bygværker (<50 m2), Mek/El","stk.",20,0,0,0,0,0]
["Pumpestationer i underjordiske bygværker (<50 m2), SRO","stk.",10,0,0,0,0,0]
["Små pumpestationer (<100 l/s) inkl. SRO-anlæg - Indre city",null,null,null,null,null,"",""]
["Tryksatte minipumpestationer (husstandssystemer)","stk.",30,0,0,0,0,0]
["Pumpestationer i brønde (< 6,25 m2), Konstruktioner","stk.",50,0,0,0,0,0]
["Pumpestationer i brønde (< 6,25 m2), Mek/EL","stk.",20,0,0,0,0,0]
["Pumpestationer i brønde (< 6,25 m2), SRO","stk.",10,0,0,0,0,0]
["Pumpestationer m. overbygning (< 20 m2), Konstruktioner","stk.",50,0,0,0,0,0]
["Pumpestationer m. overbygning (< 20 m2), Mek/EL","stk.",20,0,0,0,0,0]
["Pumpestationer m. overbygning (< 20 m2), SRO","stk.",10,0,0,0,0,0]
["Pumpestationer i underjordiske bygværker (<50 m2), Konstruktioner","stk.",50,0,0,0,0,0]
["Pumpestationer i underjordiske bygværker (<50 m2), Mek/El","stk.",20,0,0,0,0,0]
["Pumpestationer i underjordiske bygværker (<50 m2), SRO","stk.",10,0,0,0,0,0]
["Store pumpestationer: inkl. SRO-anlæg - Land",null,null,null,null,null,"",""]
["Kælder","m2",75,50,50,50,0,0]
["Pumpeinstallation Miljøklasse A (100-300 l/s) - Mek/EL","stk.",20,6,6,6,0,0]
["Pumpeinstallation Miljøklasse A (100-300 l/s) - SRO","stk.",10,6,6,6,0,0]
["Pumpeinstallation Miljøklasse A (300-600 l/s) - Mek/EL","stk.",20,0,0,0,0,0]
["Pumpeinstallation Miljøklasse A (300-600 l/s) - SRO","stk.",10,0,0,0,0,0]
["Pumpeinstallation Miljøklasse A (600-1.000 l/s) - Mek/EL","stk.",20,0,0,0,0,0]
["Pumpeinstallation Miljøklasse A (600-1.000 l/s) - SRO","stk.",10,0,0,0,0,0]
["Pumpeinstallation Miljøklasse A (1.000-1.500 l/s) - Mek/EL","stk.",20,0,0,0,0,0]
["Pumpeinstallation Miljøklasse A (1.000-1.500 l/s) - SRO","stk.",10,0,0,0,0,0]
["Pumpeinstallation Miljøklasse B (100-300 l/s) - Mek/EL","stk.",20,0,0,0,0,0]
["Pumpeinstallation Miljøklasse B (100-300 l/s) - SRO","stk.",10,0,0,0,0,0]
["Pumpeinstallation Miljøklasse B (300-600 l/s) - Mek/EL","stk.",20,0,0,0,0,0]
["Pumpeinstallation Miljøklasse B (300-600 l/s) - SRO","stk.",10,0,0,0,0,0]
["Pumpeinstallation Miljøklasse B (600-1.000 l/s) - Mek/EL","stk.",20,0,0,0,0,0]
["Pumpeinstallation Miljøklasse B (600-1.000 l/s) - SRO","stk.",10,0,0,0,0,0]
["Pumpeinstallation Miljøklasse B (1.000-1.500 l/s) - Mek/EL","stk.",20,0,0,0,{"$f":"IF(D131=\"\",IF(E131>0,\"Ny data\",IF(E131=\"\",\"\",0)),IF(D131=0,IF(E131=0,0,\"Ny data\"),(E131-D131)/D131))","v":0},{"$f":"IF(E131=\"\",IF(F131>0,\"Ny data\",IF(F131=\"\",\"\",0)),IF(E131=0,IF(F131=0,0,\"Ny data\"),(F131-E131)/E131))","v":0}]
["Pumpeinstallation Miljøklasse B (1.000-1.500 l/s) - SRO","stk.",10,0,0,0,0,0]
["Overbygning","m2",75,0,0,0,0,0]
["Store pumpestationer: inkl. SRO-anlæg - By",null,null,null,null,null,"",""]
["Kælder","m2",75,220,220,220,0,0]
["Pumpeinstallation Miljøklasse A (100-300 l/s) - Mek/EL","stk.",20,27,27,27,0,0]
["Pumpeinstallation Miljøklasse A (100-300 l/s) - SRO","stk.",10,27,27,27,0,0]
["Pumpeinstallation Miljøklasse A (300-600 l/s) - Mek/EL","stk.",20,6,6,6,0,0]
["Pumpeinstallation Miljøklasse A (300-600 l/s) - SRO","stk.",10,6,6,6,0,0]
["Pumpeinstallation Miljøklasse A (600-1.000 l/s) - Mek/EL","stk.",20,0,0,0,0,0]
["Pumpeinstallation Miljøklasse A (600-1.000 l/s) - SRO","stk.",10,0,0,0,0,0]
["Pumpeinstallation Miljøklasse A (1.000-1.500 l/s) - Mek/EL","stk.",20,3,3,3,0,0]
["Pumpeinstallation Miljøklasse A (1.000-1.500 l/s) - SRO","stk.",10,3,3,3,0,0]
["Pumpeinstallation Miljøklasse B (100-300 l/s) - Mek/EL","stk.",20,0,0,0,0,0]
["Pumpeinstallation Miljøklasse B (100-300 l/s) - SRO","stk.",10,0,0,0,0,0]
["Pumpeinstallation Miljøklasse B (300-600 l/s) - Mek/EL","stk.",20,0,0,0,0,0]
["Pumpeinstallation Miljøklasse B (300-600 l/s) - SRO","stk.",10,0,0,0,0,0]
["Pumpeinstallation Miljøklasse B (600-1.000 l/s) - Mek/EL","stk.",20,0,0,0,0,0]
["Pumpeinstallation Miljøklasse B (600-1.000 l/s) - SRO","stk.",10,0,0,0,0,0]
["Pumpeinstallation Miljøklasse B (1.000-1.500 l/s) - Mek/EL","stk.",20,0,0,0,0,0]
["Pumpeinstallation Miljøklasse B (1.000-1.500 l/s) - SRO","stk.",10,0,0,0,0,0]
["Overbygning ","m2",75,200,200,200,0,0]
["Store pumpestationer: inkl. SRO-anlæg - City",null,null,null,null,null,"",""]
["Kælder","m2",75,0,0,0,0,0]
["Pumpeinstallation Miljøklasse A (100-300 l/s) - Mek/EL","stk.",20,0,0,0,0,0]
["Pumpeinstallation Miljøklasse A (100-300 l/s) - SRO","stk.",10,0,0,0,0,0]
["Pumpeinstallation Miljøklasse A (300-600 l/s) - Mek/EL","stk.",20,0,0,0,0,0]
["Pumpeinstallation Miljøklasse A (300-600 l/s) - SRO","stk.",10,0,0,0,0,0]
["Pumpeinstallation Miljøklasse A (600-1.000 l/s) - Mek/EL","stk.",20,0,0,0,0,0]
["Pumpeinstallation Miljøklasse A (600-1.000 l/s) - SRO","stk.",10,0,0,0,0,0]
["Pumpeinstallation Miljøklasse A (1.000-1.500 l/s) - Mek/EL","stk.",20,0,0,0,0,0]
["Pumpeinstallation Miljøklasse A (1.000-1.500 l/s) - SRO","stk.",10,0,0,0,0,0]
["Pumpeinstallation Miljøklasse B (100-300 l/s) - Mek/EL","stk.",20,0,0,0,0,0]
["Pumpeinstallation Miljøklasse B (100-300 l/s) - SRO","stk.",10,0,0,0,0,0]
["Pumpeinstallation Miljøklasse B (300-600 l/s) - Mek/EL","stk.",20,0,0,0,0,0]
["Pumpeinstallation Miljøklasse B (300-600 l/s) - SRO","stk.",10,0,0,0,0,0]
["Pumpeinstallation Miljøklasse B (600-1.000 l/s) - Mek/EL","stk.",20,0,0,0,0,0]
["Pumpeinstallation Miljøklasse B (600-1.000 l/s) - SRO","stk.",10,0,0,0,0,0]
["Pumpeinstallation Miljøklasse B (1.000-1.500 l/s) - Mek/EL","stk.",20,0,0,0,0,0]
["Pumpeinstallation Miljøklasse B (1.000-1.500 l/s) - SRO","stk.",10,0,0,0,0,0]
["Overbygning ","m2",75,0,0,0,0,0]
["Store pumpestationer: inkl. SRO-anlæg - Indre city",null,null,null,null,null,"",""]
["Kælder","m2",75,0,0,0,0,0]
["Pumpeinstallation Miljøklasse A (100-300 l/s) - Mek/EL","stk.",20,0,0,0,0,0]
["Pumpeinstallation Miljøklasse A (100-300 l/s) - SRO","stk.",10,0,0,0,0,0]
["Pumpeinstallation Miljøklasse A (300-600 l/s) - Mek/EL","stk.",20,0,0,0,0,0]
["Pumpeinstallation Miljøklasse A (300-600 l/s) - SRO","stk.",10,0,0,0,0,0]
["Pumpeinstallation Miljøklasse A (600-1.000 l/s) - Mek/EL","stk.",20,0,0,0,0,0]
["Pumpeinstallation Miljøklasse A (600-1.000 l/s) - SRO","stk.",10,0,0,0,0,0]
["Pumpeinstallation Miljøklasse A (1.000-1.500 l/s) - Mek/EL","stk.",20,0,0,0,0,0]
["Pumpeinstallation Miljøklasse A (1.000-1.500 l/s) - SRO","stk.",10,0,0,0,0,0]
["Pumpeinstallation Miljøklasse B (100-300 l/s) - Mek/EL","stk.",20,0,0,0,0,0]
["Pumpeinstallation Miljøklasse B (100-300 l/s) - SRO","stk.",10,0,0,0,0,0]
["Pumpeinstallation Miljøklasse B (300-600 l/s) - Mek/EL","stk.",20,0,0,0,0,0]
["Pumpeinstallation Miljøklasse B (300-600 l/s) - SRO","stk.",10,0,0,0,0,0]
["Pumpeinstallation Miljøklasse B (600-1.000 l/s) - Mek/EL","stk.",20,0,0,0,0,0]
["Pumpeinstallation Miljøklasse B (600-1.000 l/s) - SRO","stk.",10,0,0,0,0,0]
["Pumpeinstallation Miljøklasse B (1.000-1.500 l/s) - Mek/EL","stk.",20,0,0,0,0,0]
["Pumpeinstallation Miljøklasse B (1.000-1.500 l/s) - SRO","stk.",10,0,0,0,0,0]
["Overbygning","m2",75,0,0,0,0,0]
["Overløbsbygværker - Land",null,null,null,null,null,"",""]
["Kælder (< 7 m2) ","stk.",75,10,10,13,0,0.3,"Opgørelse ændret efter vejledning opdateret; generel dataforbedring også foretaget"]
["Kælder (7 - 20 m2) ","m2",75,12,12,0,0,-1,"Opgørelse ændret efter vejledning opdateret; generel dataforbedring også foretaget"]
["Kælder (20 - 30 m2)","m2",75,30,30,0,0,-1,"Opgørelse ændret efter vejledning opdateret; generel dataforbedring også foretaget"]
["Installationer (mindre end 7 m2)","stk.",20,10,10,13,{"$f":"IF(D195=\"\",IF(E195>0,\"Ny data\",IF(E195=\"\",\"\",0)),IF(D195=0,IF(E195=0,0,\"Ny data\"),(E195-D195)/D195))","v":0},{"$f":"IF(E195=\"\",IF(F195>0,\"Ny data\",IF(F195=\"\",\"\",0)),IF(E195=0,IF(F195=0,0,\"Ny data\"),(F195-E195)/E195))","v":0.3},"Opgørelse ændret efter vejledning opdateret; generel dataforbedring også foretaget"]
["Installationer, Miljøklasse A. (7-20 m2) - Mek/EL","stk.",20,1,1,0,0,-1,"Opgørelse ændret efter vejledning opdateret; generel dataforbedring også foretaget"]
["Installationer, Miljøklasse A. (7-20 m2) - SRO","stk.",10,1,1,0,0,-1,"Opgørelse ændret efter vejledning opdateret; generel dataforbedring også foretaget"]
["Installationer, Miljøklasse A. (20-30 m2) - Mek/EL","stk.",20,1,1,0,0,-1,"Opgørelse ændret efter vejledning opdateret; generel dataforbedring også foretaget"]
["Installationer, Miljøklasse A. (20-30 m2) - SRO","stk.",10,1,1,0,0,-1,"Opgørelse ændret efter vejledning opdateret; generel dataforbedring også foretaget"]
["Installationer, Miljøklasse B. (7-20 m2) - Mek/EL","stk.",20,0,0,0,0,0]
["Installationer, Miljøklasse B. (7-20 m2) - SRO","stk.",10,0,0,0,0,0]
["Installationer, Miljøklasse B. (20-30 m2) - Mek/EL","stk.",20,0,0,0,0,0]
["Installationer, Miljøklasse B. (20-30 m2) - SRO","stk.",10,0,0,0,0,0]
["Overbygning","stk.",75,0,0,0,0,0]
["Overløbsbygværker - By",null,null,null,null,null,"",""]
["Kælder (< 7 m2) ","stk.",75,61,61,69,0,0.13114754098360656]
["Kælder (7 - 20 m2) ","m2",75,8,8,0,0,-1,"Opgørelse ændret efter vejledning opdateret; generel dataforbedring også foretaget"]
["Kælder (20 - 30 m2)","m2",75,0,0,0,0,0]
["Installationer (mindre end 7 m2)","stk.",20,61,61,69,0,0.13114754098360656]
["Installationer, Miljøklasse A. (7-20 m2) - Mek/EL","stk.",20,1,1,0,0,-1,"Opgørelse ændret efter vejledning opdateret; generel dataforbedring også foretaget"]
["Installationer, Miljøklasse A. (7-20 m2) - SRO","stk.",10,1,1,0,0,-1,"Opgørelse ændret efter vejledning opdateret; generel dataforbedring også foretaget"]
["Installationer, Miljøklasse A. (20-30 m2) - Mek/EL","stk.",20,0,0,0,0,0]
["Installationer, Miljøklasse A. (20-30 m2) - SRO","stk.",10,0,0,0,0,0]
["Installationer, Miljøklasse B. (7-20 m2) - Mek/EL","stk.",20,0,0,0,0,0]
["Installationer, Miljøklasse B. (7-20 m2) - SRO","stk.",10,0,0,0,0,0]
["Installationer, Miljøklasse B. (20-30 m2) - Mek/EL","stk.",20,0,0,0,0,0]
["Installationer, Miljøklasse B. (20-30 m2) - SRO","stk.",10,0,0,0,0,0]
["Overbygning","stk.",75,0,0,0,0,0]
["Overløbsbygværker - City",null,null,0,null,null,0,""]
["Kælder (< 7 m2) ","stk.",75,5,5,8,0,0.6,"Opgørelse ændret efter vejledning opdateret; generel dataforbedring også foretaget"]
["Kælder (7 - 20 m2) ","m2",75,29,29,0,0,-1,"Opgørelse ændret efter vejledning opdateret; generel dataforbedring også foretaget"]
["Kælder (20 - 30 m2)","m2",75,0,0,0,0,0]
["Installationer (mindre end 7 m2)","stk.",20,4,4,8,0,1,"Opgørelse ændret efter vejledning opdateret; generel dataforbedring også foretaget"]
["Installationer, Miljøklasse A. (7-20 m2) - Mek/EL","stk.",20,2,2,0,0,-1,"Opgørelse ændret efter vejledning opdateret; generel dataforbedring også foretaget"]
["Installationer, Miljøklasse A. (7-20 m2) - SRO","stk.",10,2,2,0,0,-1,"Opgørelse ændret efter vejledning opdateret; generel dataforbedring også foretaget"]
["Installationer, Miljøklasse A. (20-30 m2) - Mek/EL","stk.",20,0,0,0,0,0]
["Installationer, Miljøklasse A. (20-30 m2) - SRO","stk.",10,0,0,0,0,0]
["Installationer, Miljøklasse B. (7-20 m2) - Mek/EL","stk.",20,0,0,0,0,0]
["Installationer, Miljøklasse B. (7-20 m2) - SRO","stk.",10,0,0,0,0,0]
["Installationer, Miljøklasse B. (20-30 m2) - Mek/EL","stk.",20,0,0,0,0,0]
["Installationer, Miljøklasse B. (20-30 m2) - SRO","stk.",10,0,0,0,0,0]
["Overbygning (efter beliggenhed) ","stk.",75,0,0,0,0,0]
["Overløbsbygværker - Indre city",null,null,0,null,null,0,""]
["Kælder (< 7 m2) ","stk.",75,0,0,0,0,0]
["Kælder (7 - 20 m2) ","m2",75,0,0,0,0,0]
["Kælder (20 - 30 m2)","m2",75,0,0,0,0,0]
["Installationer (mindre end 7 m2)","stk.",20,0,0,0,0,0]
["Installationer, Miljøklasse A. (7-20 m2) - Mek/EL","stk.",20,0,0,0,0,0]
["Installationer, Miljøklasse A. (7-20 m2) - SRO","stk.",10,0,0,0,0,0]
["Installationer, Miljøklasse A. (20-30 m2) - Mek/EL","stk.",20,0,0,0,0,0]
["Installationer, Miljøklasse A. (20-30 m2) - SRO","stk.",10,0,0,0,0,0]
["Installationer, Miljøklasse B. (7-20 m2) - Mek/EL","stk.",20,0,0,0,0,0]
["Installationer, Miljøklasse B. (7-20 m2) - SRO","stk.",10,0,0,0,0,0]
["Installationer, Miljøklasse B. (20-30 m2) - Mek/EL","stk.",20,0,0,0,0,0]
["Installationer, Miljøklasse B. (20-30 m2) - SRO","stk.",10,0,0,0,0,0]
["Overbygning","stk.",75,0,0,0,0,0]
["Forsinkelsesbassiner - Land",null,null,null,null,null,"",""]
["Forsinkelsesbassiner, lukkede uden automatisk rensning og SRO (mindre end 1.000 m3)","m³",50,490,490,490,0,0]
["Forsinkelsesbassiner, lukkede med automatisk rensning og SRO (mindre end 1.000 m3) - Konstruktioner","m³",75,0,0,0,0,0]
["Forsinkelsesbassiner, lukkede med automatisk rensning og SRO (mindre end 1.000 m3) - Mek/EL","m³",20,0,0,0,0,0]
["Forsinkelsesbassiner, lukkede med automatisk rensning og SRO (mindre end 1.000 m3) - SRO ","m³",10,0,0,0,0,0]
["Forsinkelsesbassiner, lukkede (1.000-4.000 m3) - Konstruktioner","m³",75,1500,1500,1500,0,0]
["Forsinkelsesbassiner, lukkede (1.000-4.000 m3) - Mek/EL","m³",20,1500,1500,1500,0,0]
["Forsinkelsesbassiner, lukkede (1.000-4.000 m3) - SRO","m³",10,1500,1500,1500,0,0]
["Forsinkelsesbassiner, lukkede (4.000-10.000 m3) - Konstruktioner","m³",75,0,0,0,0,0]
["Forsinkelsesbassiner, lukkede (4.000-10.000 m3) - Mek/EL","m³",20,0,0,0,0,0]
["Forsinkelsesbassiner, lukkede (4.000-10.000 m3) - SRO","m³",10,0,0,0,0,0]
["Forsinkelsesbassiner, lukkede (større end 10.000 m3) - Konstruktioner","m³",75,19950,19950,19950,0,0]
["Forsinkelsesbassiner, lukkede (større end 10.000 m3) - Mek/EL","m³",20,19950,19950,19950,{"$f":"IF(D259=\"\",IF(E259>0,\"Ny data\",IF(E259=\"\",\"\",0)),IF(D259=0,IF(E259=0,0,\"Ny data\"),(E259-D259)/D259))","v":0},{"$f":"IF(E259=\"\",IF(F259>0,\"Ny data\",IF(F259=\"\",\"\",0)),IF(E259=0,IF(F259=0,0,\"Ny data\"),(F259-E259)/E259))","v":0}]
["Forsinkelsesbassiner, lukkede (større end 10.000 m3) - SRO","m³",10,19950,19950,19950,0,0]
["Forsinkelsesbassiner - By",null,null,null,null,null,"",""]
["Forsinkelsesbassiner, lukkede uden automatisk rensning og SRO (mindre end 1.000 m3)","m³",50,1975,1975,1975,0,0]
["Forsinkelsesbassiner, lukkede med automatisk rensning og SRO (mindre end 1.000 m3) - Konstruktioner","m³",75,2045,2045,2045,0,0]
["Forsinkelsesbassiner, lukkede med automatisk rensning og SRO (mindre end 1.000 m3) - Mek/EL","m³",20,2045,2045,2045,0,0]
["Forsinkelsesbassiner, lukkede med automatisk rensning og SRO (mindre end 1.000 m3) - SRO ","m³",10,2045,2045,2045,0,0]
["Forsinkelsesbassiner, lukkede (1.000-4.000 m3) - Konstruktioner","m³",75,5880,5880,5880,0,0]
["Forsinkelsesbassiner, lukkede (1.000-4.000 m3) - Mek/EL","m³",20,5880,5880,5880,0,0]
["Forsinkelsesbassiner, lukkede (1.000-4.000 m3) - SRO","m³",10,5880,5880,5880,0,0]
["Forsinkelsesbassiner, lukkede (4.000-10.000 m3) - Konstruktioner","m³",75,8080,8080,8080,0,0]
["Forsinkelsesbassiner, lukkede (4.000-10.000 m3) - Mek/EL","m³",20,8080,8080,8080,0,0]
["Forsinkelsesbassiner, lukkede (4.000-10.000 m3) - SRO","m³",10,8080,8080,8080,0,0]
["Forsinkelsesbassiner, lukkede (større end 10.000 m3) - Konstruktioner","m³",75,0,0,0,0,0]
["Forsinkelsesbassiner, lukkede (større end 10.000 m3) - Mek/EL","m³",20,0,0,0,0,0]
["Forsinkelsesbassiner, lukkede (større end 10.000 m3) - SRO","m³",10,0,0,0,0,0]
["Forsinkelsesbassiner - City",null,null,null,null,null,"",""]
["Forsinkelsesbassiner, lukkede uden automatisk rensning og SRO (mindre end 1.000 m3)","m³",50,235,235,235,0,0]
["Forsinkelsesbassiner, lukkede med automatisk rensning og SRO (mindre end 1.000 m3) - Konstruktioner","m³",75,550,550,550,0,0]
["Forsinkelsesbassiner, lukkede med automatisk rensning og SRO (mindre end 1.000 m3) - Mek/EL","m³",20,550,550,550,0,0]
["Forsinkelsesbassiner, lukkede med automatisk rensning og SRO (mindre end 1.000 m3) - SRO ","m³",10,550,550,550,0,0]
["Forsinkelsesbassiner, lukkede (1.000-4.000 m3) - Konstruktioner","m³",75,0,0,0,0,0]
["Forsinkelsesbassiner, lukkede (1.000-4.000 m3) - Mek/EL","m³",20,0,0,0,0,0]
["Forsinkelsesbassiner, lukkede (1.000-4.000 m3) - SRO","m³",10,0,0,0,0,0]
["Forsinkelsesbassiner, lukkede (4.000-10.000 m3) - Konstruktioner","m³",75,0,0,0,0,0]
["Forsinkelsesbassiner, lukkede (4.000-10.000 m3) - Mek/EL","m³",20,0,0,0,0,0]
["Forsinkelsesbassiner, lukkede (4.000-10.000 m3) - SRO","m³",10,0,0,0,0,0]
["Forsinkelsesbassiner, lukkede (større end 10.000 m3) - Konstruktioner","m³",75,0,0,0,0,0]
["Forsinkelsesbassiner, lukkede (større end 10.000 m3) - Mek/EL","m³",20,0,0,0,0,0]
["Forsinkelsesbassiner, lukkede (større end 10.000 m3) - SRO","m³",10,0,0,0,0,0]
["Forsinkelsesbassiner - Indre city",null,null,null,null,null,"",""]
["Forsinkelsesbassiner, lukkede uden automatisk rensning og SRO (mindre end 1.000 m3)","m³",50,0,0,0,0,0]
["Forsinkelsesbassiner, lukkede med automatisk rensning og SRO (mindre end 1.000 m3) - Konstruktioner","m³",75,0,0,0,0,0]
["Forsinkelsesbassiner, lukkede med automatisk rensning og SRO (mindre end 1.000 m3) - Mek/EL","m³",20,0,0,0,0,0]
["Forsinkelsesbassiner, lukkede med automatisk rensning og SRO (mindre end 1.000 m3) - SRO ","m³",10,0,0,0,0,0]
["Forsinkelsesbassiner, lukkede (1.000-4.000 m3) - Konstruktioner","m³",75,0,0,0,0,0]
["Forsinkelsesbassiner, lukkede (1.000-4.000 m3) - Mek/EL","m³",20,0,0,0,0,0]
["Forsinkelsesbassiner, lukkede (1.000-4.000 m3) - SRO","m³",10,0,0,0,0,0]
["Forsinkelsesbassiner, lukkede (4.000-10.000 m3) - Konstruktioner","m³",75,0,0,0,0,0]
["Forsinkelsesbassiner, lukkede (4.000-10.000 m3) - Mek/EL","m³",20,0,0,0,0,0]
["Forsinkelsesbassiner, lukkede (4.000-10.000 m3) - SRO","m³",10,0,0,0,0,0]
["Forsinkelsesbassiner, lukkede (større end 10.000 m3) - Konstruktioner","m³",75,0,0,0,0,0]
["Forsinkelsesbassiner, lukkede (større end 10.000 m3) - Mek/EL","m³",20,0,0,0,0,0]
["Forsinkelsesbassiner, lukkede (større end 10.000 m3) - SRO","m³",10,0,0,0,0,0]
["Sparebassin/Laguner/Jordbassiner - Land",null,null,null,null,null,"",""]
["Jordbassin Klasse A og B","m³",50,14822,31095,31095,1.0978950209148564,0,"Ændret opgørelsesmetode"]
["Indløb-/udløbsarrangement","stk.",75,34,34,34,0,0]
["Andre bygninger (tekniske installationer, målere mv.)","m2",75,0,0,0,0,0]
["Sparebassin/Laguner/Jordbassiner - By",null,null,null,null,null,"",""]
["Jordbassin Klasse A og B","m³",50,34316,52179,73948,0.52054435248863506,0.41719848981390983,"Ændret opgørelsesmetode"]
["Indløb-/udløbsarrangement","stk.",75,39,39,39,0,0]
["Andre bygninger (tekniske installationer, målere mv.)","m2",75,0,0,0,0,0]
["Sparebassin/Laguner/Jordbassiner - City",null,null,null,null,null,"",""]
["Jordbassin Klasse A og B","m³",50,975,3158,3198,2.2389743589743589,1.266624445851805E-2,"Ændret opgørelsesmetode"]
["Indløb-/udløbsarrangement","stk.",75,0,0,0,0,0]
["Andre bygninger (tekniske installationer, målere mv.)","m2",75,0,0,0,0,0]
["Sparebassin/Laguner/Jordbassiner - Indre city",null,null,null,null,null,"",""]
["Jordbassin Klasse A og B","m³",50,0,0,0,0,0]
["Indløb-/udløbsarrangement","stk.",75,0,0,0,0,0]
["Andre bygninger (tekniske installationer, målere mv.)","m2",75,0,0,0,0,0]

{"sheet":"Fællesfunktionsanlæg","index":2,"n_rows":13,"n_cols":9,"rows_kept":13,"cut":false,"hidden":false,"merged":[[0,0,1,0],[0,1,1,1],[0,2,1,2],[0,3,1,3],[0,8,1,8],[0,4,1,4],[0,5,1,5],[0,6,1,6],[0,7,1,7]]}
["Fællesfunktionsanlæg","Enhed","Standard-levetid","Samlet mængde per 31/12-2022","Samlet mængde per 31/12-2023","Samlet mængde per 31/12-2024","Afvigelse 2022-2023","Afvigelse 2023-2024","Bemærkninger"]
[]
["Andre",null,null,null,null,null,{"$f":"IF(D3=\"\",IF(E3>0,\"Ny data\",IF(E3=\"\",\"\",0)),IF(D3=0,IF(E3=0,0,\"Ny data\"),(E3-D3)/D3))","v":""},{"$f":"IF(E3=\"\",IF(F3>0,\"Ny data\",IF(F3=\"\",\"\",0)),IF(E3=0,IF(F3=0,0,\"Ny data\"),(F3-E3)/E3))","v":""}]
["Administrationbygninger","m2",75,202.43799999999999,217.678,290.83,7.5282308657465546E-2,0.33605600933488911,"Nye lejede lokaler"]
["Arbejdsplads og kontor","stk.",5,16.5608,18.1356,19.4056,9.5092024539877279E-2,7.0028011204481766E-2,"Flere ansatte"]
["Køretøjer, personbil","stk.",5,0.4572,0.4572,0.4572,0,0]
["Køretøjer, små lastvogne (< 3.500 kg.)","stk.",5,4.6228000000000007,4.4196,4.3688000000000002,-4.3956043956044105E-2,-1.1494252873563158E-2]
["Køretøjer, store lastvogne (> 3.500 kg.)","stk.",5,2.1335999999999999,1.9812000000000001,1.9303999999999999,-7.1428571428571369E-2,-2.564102564102573E-2]
["Køretøjer, entreprenørmaskiner","stk.",5,5.0799999999999998E-2,0,0,-1,0,"Solgt"]
["Slamsugere","stk.",5,0.29289696898960271,0.29289696898960271,0.29289696898960271,0,0]
["Værksteder, garager","m2",75,0,0,0,0,0]
["Solcelleanlæg eksl. Inverter","kWp",25,0,0,0,0,0]
["Inverter til solcelleanlæg","kWp",10,0,0,0,0,0]